Publisher Label,Publisher URI,"Supplier","Net Amount (£)","Organisational Unit","Merchant Category Code","Purpose","Payment Date"
"Wolverhampton City Council","http://opendatacommunities.org/id/metropolitan-district-council/wolverhampton","TESCO STORES 5503","14.99","CIN/CP Social Work Unit - Area 6","5411","Section 17","29/09/2017"
"Wolverhampton City Council","http://opendatacommunities.org/id/metropolitan-district-council/wolverhampton","CURRYS S/S","390.79","Headstart - Young People Engagement","5732","Computing - Purchase of Hardware","29/09/2017"
"Wolverhampton City Council","http://opendatacommunities.org/id/metropolitan-district-council/wolverhampton","CURRYS S/S","415.00","Headstart - Young People Engagement","5732","Computing - Purchase of Hardware","29/09/2017"
"Wolverhampton City Council","http://opendatacommunities.org/id/metropolitan-district-council/wolverhampton","LOVE2SHOP.CO.UK","356.45","IMPACT","8641","Educ Trips, Holidays, Outings, Activity","29/09/2017"
"Wolverhampton City Council","http://opendatacommunities.org/id/metropolitan-district-council/wolverhampton","WOLVERHAMPTON CC","2.50","IMPACT","7523","Car Allowances","29/09/2017"
"Wolverhampton City Council","http://opendatacommunities.org/id/metropolitan-district-council/wolverhampton","WM MORRISON 024","7.82","Ernest Bold Court","5411","Provisions (Not for resale)","29/09/2017"
"Wolverhampton City Council","http://opendatacommunities.org/id/metropolitan-district-council/wolverhampton","SAINSBURYS PFS (1340)","-4.17","Mayoral Expenses","5541","Vehicle Maintenance - Repairs","29/09/2017"
"Wolverhampton City Council","http://opendatacommunities.org/id/metropolitan-district-council/wolverhampton","SAINSBURYS PFS (1340)","4.17","Mayoral Expenses","5541","Vehicle Maintenance - Repairs","29/09/2017"
"Wolverhampton City Council","http://opendatacommunities.org/id/metropolitan-district-council/wolverhampton","ITUNES.COM/BILL","0.79","Strategic ICTS (ICT Serv Budget)","5735","Computing - Purchase of Software","29/09/2017"
"Wolverhampton City Council","http://opendatacommunities.org/id/metropolitan-district-council/wolverhampton","VENUE CATERING PAR","15.35","Managing Director","5811","Catering","29/09/2017"
"Wolverhampton City Council","http://opendatacommunities.org/id/metropolitan-district-council/wolverhampton","EB  DOES MODERN SLAVER","64.90","Corporate Procurement Unit","7399","Equipment - Purchase","29/09/2017"
"Wolverhampton City Council","http://opendatacommunities.org/id/metropolitan-district-council/wolverhampton","Virgin Trains","60.70","LAC Team","4112","Client Transport","29/09/2017"
"Wolverhampton City Council","http://opendatacommunities.org/id/metropolitan-district-council/wolverhampton","SCREWFIX DIRECT","84.12","Central Costs","5211","Materials","29/09/2017"
"Wolverhampton City Council","http://opendatacommunities.org/id/metropolitan-district-council/wolverhampton","Amazon EU","13.91","Headstart Phase 3","5969","Equipment - Purchase","29/09/2017"
"Wolverhampton City Council","http://opendatacommunities.org/id/metropolitan-district-council/wolverhampton","Amazon EU","13.91","Headstart Phase 3","5969","Equipment - Purchase","29/09/2017"
"Wolverhampton City Council","http://opendatacommunities.org/id/metropolitan-district-council/wolverhampton","ARGOS LTD","16.66","Condition Surveys","5310","Equipment - Purchase","29/09/2017"
"Wolverhampton City Council","http://opendatacommunities.org/id/metropolitan-district-council/wolverhampton","Amazon EU","10.60","Technical Support","5969","Equipment - Purchase","29/09/2017"
"Wolverhampton City Council","http://opendatacommunities.org/id/metropolitan-district-council/wolverhampton","BRITANNIA","170.42","CIN/CP Social Work Unit - Area 5","7011","Section 17","29/09/2017"
"Wolverhampton City Council","http://opendatacommunities.org/id/metropolitan-district-council/wolverhampton","UNTOUCHABLES","7.00","Education Catering - General Overheads","5231","Materials","29/09/2017"
"Wolverhampton City Council","http://opendatacommunities.org/id/metropolitan-district-council/wolverhampton","RICS COM GBP CYBS","110.00","Central Training","8699","Training Expenses","29/09/2017"
"Wolverhampton City Council","http://opendatacommunities.org/id/metropolitan-district-council/wolverhampton","WWW.SEVERNTRENTSEARCHE","305.00","Legal Services","4900","Services - Professional Fees","29/09/2017"
"Wolverhampton City Council","http://opendatacommunities.org/id/metropolitan-district-council/wolverhampton","POST OFFICE COUNTER","15.60","Adult Services - North","9402","Comms - Postage","29/09/2017"
"Wolverhampton City Council","http://opendatacommunities.org/id/metropolitan-district-council/wolverhampton","BCC REGISTER OFFIC","15.00","CIN/CP Social Work Unit - Area 4","9399","Services - Fees and Charges","29/09/2017"
"Wolverhampton City Council","http://opendatacommunities.org/id/metropolitan-district-council/wolverhampton","CITY DIRECT","40.00","CIN/CP Social Work Unit - Area 1","8299","Section 17","29/09/2017"
"Wolverhampton City Council","http://opendatacommunities.org/id/metropolitan-district-council/wolverhampton","CONNELLS CLIENT ACCOUN","1790.00","CIN/CP Social Work Unit - Area 1","8999","No Recourse to Public Funds","29/09/2017"
"Wolverhampton City Council","http://opendatacommunities.org/id/metropolitan-district-council/wolverhampton","B&M RETAIL LTD","39.98","EIP Locality 5","5310","Equipment - Purchase","29/09/2017"
"Wolverhampton City Council","http://opendatacommunities.org/id/metropolitan-district-council/wolverhampton","ASDA SUPERSTORE","13.87","EIP Locality 5","5411","Provisions (Not for resale)","29/09/2017"
"Wolverhampton City Council","http://opendatacommunities.org/id/metropolitan-district-council/wolverhampton","HOME BARGAINS","14.94","EIP Locality 5","5251","Equipment - Purchase","29/09/2017"
"Wolverhampton City Council","http://opendatacommunities.org/id/metropolitan-district-council/wolverhampton","GRO HM PASSPORT OFFICE","19.50","LAC Transitions Team","9399","Client Allowances","29/09/2017"
"Wolverhampton City Council","http://opendatacommunities.org/id/metropolitan-district-council/wolverhampton","EAST & WEST AID","65.00","CIN/CP Social Work Unit - Area 3","8398","Services - Supplies & Services to users","29/09/2017"
"Wolverhampton City Council","http://opendatacommunities.org/id/metropolitan-district-council/wolverhampton","EAST & WEST AID","130.00","CIN/CP Social Work Unit - Area 3","8398","Services - Supplies & Services to users","29/09/2017"
"Wolverhampton City Council","http://opendatacommunities.org/id/metropolitan-district-council/wolverhampton","Amazon Prime","-7.99","Equalities","5968","Subscriptions","29/09/2017"
"Wolverhampton City Council","http://opendatacommunities.org/id/metropolitan-district-council/wolverhampton","BE EVENT HIRE","716.00","Equalities","7394","Equipment - Hire","29/09/2017"
"Wolverhampton City Council","http://opendatacommunities.org/id/metropolitan-district-council/wolverhampton","PAYPAL  NEEDFLYERS","43.00","Education And Access","7311","Equipment - R & M","28/09/2017"
"Wolverhampton City Council","http://opendatacommunities.org/id/metropolitan-district-council/wolverhampton","TVLICENSING.CO.UK","147.00","LAC Transitions Team","7392","Client Allowances","28/09/2017"
"Wolverhampton City Council","http://opendatacommunities.org/id/metropolitan-district-council/wolverhampton","Virgin Trains","139.30","Members Expenses","4112","Public Transport","28/09/2017"
"Wolverhampton City Council","http://opendatacommunities.org/id/metropolitan-district-council/wolverhampton","Virgin Trains","141.80","Information Governance Team","4112","Public Transport","28/09/2017"
"Wolverhampton City Council","http://opendatacommunities.org/id/metropolitan-district-council/wolverhampton","PAYPAL  KSV LIMITED","35.60","Strategic Director Place","5921","Equipment - Purchase","28/09/2017"
"Wolverhampton City Council","http://opendatacommunities.org/id/metropolitan-district-council/wolverhampton","REGISTRARS OFFICE","70.00","Head of Service - CINCP","8299","Services - Professional Fees","28/09/2017"
"Wolverhampton City Council","http://opendatacommunities.org/id/metropolitan-district-council/wolverhampton","THE COAL AUTHORITY","91.50","Legal Services","9399","Services - Fees and Charges","28/09/2017"
"Wolverhampton City Council","http://opendatacommunities.org/id/metropolitan-district-council/wolverhampton","GRO HM PASSPORT OFFICE","37.00","Head of Service - CINCP","9399","Services - Fees and Charges","28/09/2017"
"Wolverhampton City Council","http://opendatacommunities.org/id/metropolitan-district-council/wolverhampton","B&M RETAIL","2.50","LAC Transitions Team","5310","Client Allowances","28/09/2017"
"Wolverhampton City Council","http://opendatacommunities.org/id/metropolitan-district-council/wolverhampton","PREMIER INN","159.15","CIN/CP Social Work Unit - Area 8","3811","Accommodation Costs","28/09/2017"
"Wolverhampton City Council","http://opendatacommunities.org/id/metropolitan-district-council/wolverhampton","TESCO STORES 5194","-6.25","Towers Outdoor Education Centre","5411","Provisions (Not for resale)","28/09/2017"
"Wolverhampton City Council","http://opendatacommunities.org/id/metropolitan-district-council/wolverhampton","COTSWOLD OUTDOOR-MAIL","44.80","Towers Outdoor Education Centre","5691","Equipment - Purchase","28/09/2017"
"Wolverhampton City Council","http://opendatacommunities.org/id/metropolitan-district-council/wolverhampton","000002200500000","250.00","CIN/CP Social Work Unit - Area 6","6011","Financial Assistance In Exceptional Circ","28/09/2017"
"Wolverhampton City Council","http://opendatacommunities.org/id/metropolitan-district-council/wolverhampton","Amazon UK Marketplace","9.78","Communications & Marketing - General","5942","Books","28/09/2017"
"Wolverhampton City Council","http://opendatacommunities.org/id/metropolitan-district-council/wolverhampton","ROYAL BK OF SCOTLAND","200.00","Headstart Phase 3","6011","Financial Assistance In Exceptional Circ","28/09/2017"
"Wolverhampton City Council","http://opendatacommunities.org/id/metropolitan-district-council/wolverhampton","WOLVERHAMPTON CC","3.33","Headstart - Young People Engagement","7523","Parking Fees","28/09/2017"
"Wolverhampton City Council","http://opendatacommunities.org/id/metropolitan-district-council/wolverhampton","WWW.WMCA.CO.UK","109.00","IMPACT","9399","Services - Fees and Charges","28/09/2017"
"Wolverhampton City Council","http://opendatacommunities.org/id/metropolitan-district-council/wolverhampton","LEARNDIRECT LIMITED","41.67","IMPACT","8220","Training Expenses","28/09/2017"
"Wolverhampton City Council","http://opendatacommunities.org/id/metropolitan-district-council/wolverhampton","SPECSAVERSEVOUGB-","850.00","Eye Test Vouchers (HR)","8043","Services - Professional Fees","28/09/2017"
"Wolverhampton City Council","http://opendatacommunities.org/id/metropolitan-district-council/wolverhampton","WAITROSE 696","2.85","Mayoral Expenses","5411","Hospitality","28/09/2017"
"Wolverhampton City Council","http://opendatacommunities.org/id/metropolitan-district-council/wolverhampton","Amazon UK Marketplace","13.75","LAC Team","5942","Computing - Purchase of Hardware","28/09/2017"
"Wolverhampton City Council","http://opendatacommunities.org/id/metropolitan-district-council/wolverhampton","ARGOS LTD","33.32","LAC Transitions Team","5310","Client Allowances","28/09/2017"
"Wolverhampton City Council","http://opendatacommunities.org/id/metropolitan-district-council/wolverhampton","000002200500000","100.00","EIP Locality 7","6011","Grant Payments","28/09/2017"
"Wolverhampton City Council","http://opendatacommunities.org/id/metropolitan-district-council/wolverhampton","POST OFFICE COUNTER","56.00","EIP Locality 7","9402","Comms - Postage","28/09/2017"
"Wolverhampton City Council","http://opendatacommunities.org/id/metropolitan-district-council/wolverhampton","NATWEST BANK","100.00","EIP Locality 7","6011","Grant Payments","28/09/2017"
"Wolverhampton City Council","http://opendatacommunities.org/id/metropolitan-district-council/wolverhampton","Trainline","331.40","LAC Transitions Team","4112","Public Transport","28/09/2017"
"Wolverhampton City Council","http://opendatacommunities.org/id/metropolitan-district-council/wolverhampton","WEST MID TRAVEL","241.40","Youth Offending Team","4131","Public Transport","28/09/2017"
"Wolverhampton City Council","http://opendatacommunities.org/id/metropolitan-district-council/wolverhampton","AMAZON.CO.UK","10.99","Strategic ICTS (ICT Serv Budget)","5942","Equipment - Purchase","28/09/2017"
"Wolverhampton City Council","http://opendatacommunities.org/id/metropolitan-district-council/wolverhampton","Amazon EU","54.58","Strategic ICTS (ICT Serv Budget)","5969","Equipment - Purchase","28/09/2017"
"Wolverhampton City Council","http://opendatacommunities.org/id/metropolitan-district-council/wolverhampton","Amazon UK Marketplace","28.97","Strategic ICTS (ICT Serv Budget)","5942","Equipment - Purchase","28/09/2017"
"Wolverhampton City Council","http://opendatacommunities.org/id/metropolitan-district-council/wolverhampton","PAYPAL  LAPTOP-LCD","297.24","Strategic ICTS (ICT Serv Budget)","5732","Equipment - Purchase","28/09/2017"
"Wolverhampton City Council","http://opendatacommunities.org/id/metropolitan-district-council/wolverhampton","CROWN PROPERTY SERVICE","200.00","CIN/CP Social Work Unit - Area 3","7011","Services - Supplies & Services to users","28/09/2017"
"Wolverhampton City Council","http://opendatacommunities.org/id/metropolitan-district-council/wolverhampton","ASDA HOME SHOPPING","-14.54","Upper Pendeford Farm Childrens Home","5411","Provisions (Not for resale)","28/09/2017"
"Wolverhampton City Council","http://opendatacommunities.org/id/metropolitan-district-council/wolverhampton","SCREWFIX DIRECT LT","109.14","Culwell Street Depot","5211","R&M - Departmental planned (external)","28/09/2017"
"Wolverhampton City Council","http://opendatacommunities.org/id/metropolitan-district-council/wolverhampton","LOYD WEDNESFIELD WOLVE","250.00","Duke Street Bungalows","6011","Financial Assistance In Exceptional Circ","28/09/2017"
"Wolverhampton City Council","http://opendatacommunities.org/id/metropolitan-district-council/wolverhampton","PAYPAL  BANANAPRINT","14.08","Technical Support","8931","Services - Professional Fees","28/09/2017"
"Wolverhampton City Council","http://opendatacommunities.org/id/metropolitan-district-council/wolverhampton","AMAZON UK RETAIL AMAZO","20.83","Global Budgets","5999","Books","28/09/2017"
"Wolverhampton City Council","http://opendatacommunities.org/id/metropolitan-district-council/wolverhampton","CUMMINGS BROTHERS LOCK","35.00","Parks - Ranger Service","7399","Equipment - Purchase","27/09/2017"
"Wolverhampton City Council","http://opendatacommunities.org/id/metropolitan-district-council/wolverhampton","TRAINLINE","-85.10","CIN/CP Social Work Unit - Area 8","4112","Public Transport","27/09/2017"
"Wolverhampton City Council","http://opendatacommunities.org/id/metropolitan-district-council/wolverhampton","TESCO STORES 5397","1.40","EIP Locality 1","5411","Provisions (Not for resale)","27/09/2017"
"Wolverhampton City Council","http://opendatacommunities.org/id/metropolitan-district-council/wolverhampton","CUMMINGS BROTHERS LOCK","14.58","Wholesale Market Facilities Management","7399","R&M - Departmental planned (external)","27/09/2017"
"Wolverhampton City Council","http://opendatacommunities.org/id/metropolitan-district-council/wolverhampton","NATWEST BANK","200.00","MASH","6011","Financial Assistance In Exceptional Circ","27/09/2017"
"Wolverhampton City Council","http://opendatacommunities.org/id/metropolitan-district-council/wolverhampton","AMAZON.CO.UK","36.73","SEN Sensory Inclusion","5942","Equipment - Purchase","27/09/2017"
"Wolverhampton City Council","http://opendatacommunities.org/id/metropolitan-district-council/wolverhampton","Amazon UK Marketplace","37.98","SEN Sensory Inclusion","5942","Equipment - Purchase","27/09/2017"
"Wolverhampton City Council","http://opendatacommunities.org/id/metropolitan-district-council/wolverhampton","123-REG.CO.UK","19.98","Technical Support","4816","Computing - Purchase of Software","27/09/2017"
"Wolverhampton City Council","http://opendatacommunities.org/id/metropolitan-district-council/wolverhampton","Trainline","98.53","CIN/CP Social Work Unit - Area 8","4112","Public Transport","27/09/2017"
"Wolverhampton City Council","http://opendatacommunities.org/id/metropolitan-district-council/wolverhampton","Trainline","112.91","CIN/CP Social Work Unit - Area 8","4112","Public Transport","27/09/2017"
"Wolverhampton City Council","http://opendatacommunities.org/id/metropolitan-district-council/wolverhampton","ARGOS LTD","26.98","Duke Street Bungalows","5310","Equipment - Purchase","27/09/2017"
"Wolverhampton City Council","http://opendatacommunities.org/id/metropolitan-district-council/wolverhampton","TESCO STORES 5194","163.47","Towers Outdoor Education Centre","5411","Provisions (Not for resale)","27/09/2017"
"Wolverhampton City Council","http://opendatacommunities.org/id/metropolitan-district-council/wolverhampton","AMAZON.CO.UK","6.55","Global Budgets","5942","Books","27/09/2017"
"Wolverhampton City Council","http://opendatacommunities.org/id/metropolitan-district-council/wolverhampton","Amazon UK Marketplace","8.69","Global Budgets","5942","Books","27/09/2017"
"Wolverhampton City Council","http://opendatacommunities.org/id/metropolitan-district-council/wolverhampton","BARCLAYS BANK PLC","20.00","EIP Locality 3","6011","Grant Payments","27/09/2017"
"Wolverhampton City Council","http://opendatacommunities.org/id/metropolitan-district-council/wolverhampton","PRINTCARRIER.COM","104.00","Civic & Wulfrun In-house Promotions","2741","Marketing \ Non-staff advertising","27/09/2017"
"Wolverhampton City Council","http://opendatacommunities.org/id/metropolitan-district-council/wolverhampton","IF SOLUTIONS LTD","525.75","Visitor Economy - Development","7399","Equipment - Purchase","27/09/2017"
"Wolverhampton City Council","http://opendatacommunities.org/id/metropolitan-district-council/wolverhampton","AMAZON.CO.UK","60.52","Children & Family Contact Services","5942","Books","27/09/2017"
"Wolverhampton City Council","http://opendatacommunities.org/id/metropolitan-district-council/wolverhampton","WWW.ARGOS.CO.UK","28.94","LAC Transitions Team","5310","Equipment - Purchase","27/09/2017"
"Wolverhampton City Council","http://opendatacommunities.org/id/metropolitan-district-council/wolverhampton","CUMMINGS BROTHERS LOCK","49.00","Caretakers Community Centre","7399","Equipment - Purchase","27/09/2017"
"Wolverhampton City Council","http://opendatacommunities.org/id/metropolitan-district-council/wolverhampton","AMZ Just Gloves","27.95","Central Baths","4816","Computing - Purchase of Software","27/09/2017"
"Wolverhampton City Council","http://opendatacommunities.org/id/metropolitan-district-council/wolverhampton","REGISTRARS OFFICE","30.00","CIN/CP Social Work Unit - Area 3","8299","Stationery","27/09/2017"
"Wolverhampton City Council","http://opendatacommunities.org/id/metropolitan-district-council/wolverhampton","ASDA HOME SHOPPING","-5.15","Upper Pendeford Farm Childrens Home","5411","Provisions (Not for resale)","27/09/2017"
"Wolverhampton City Council","http://opendatacommunities.org/id/metropolitan-district-council/wolverhampton","ASDA HOME SHOPPING","205.59","Upper Pendeford Farm Childrens Home","5411","Provisions (Not for resale)","27/09/2017"
"Wolverhampton City Council","http://opendatacommunities.org/id/metropolitan-district-council/wolverhampton","ARGOS RETAIL GROUP","59.26","MASH","5310","Equipment - Purchase","27/09/2017"
"Wolverhampton City Council","http://opendatacommunities.org/id/metropolitan-district-council/wolverhampton","Trainline","169.83","MASH","4112","Public Transport","27/09/2017"
"Wolverhampton City Council","http://opendatacommunities.org/id/metropolitan-district-council/wolverhampton","Trainline","187.17","MASH","4112","Public Transport","27/09/2017"
"Wolverhampton City Council","http://opendatacommunities.org/id/metropolitan-district-council/wolverhampton","AMAZON UK RETAIL AMAZO","38.33","Headstart Phase 3","5999","Equipment - Purchase","27/09/2017"
"Wolverhampton City Council","http://opendatacommunities.org/id/metropolitan-district-council/wolverhampton","WOLVERHAMPTON CC","2.50","Headstart Phase 3","7523","Parking Fees","27/09/2017"
"Wolverhampton City Council","http://opendatacommunities.org/id/metropolitan-district-council/wolverhampton","PREMIER INN","71.66","Headstart Phase 3","3811","Accommodation Costs","27/09/2017"
"Wolverhampton City Council","http://opendatacommunities.org/id/metropolitan-district-council/wolverhampton","THE BUSINESS DESIGN CT","120.00","Quality Assurance & Policies","7399","Equipment - Purchase","27/09/2017"
"Wolverhampton City Council","http://opendatacommunities.org/id/metropolitan-district-council/wolverhampton","WWW.CORAM.ORG.UK","24.08","Fostering Team & Allowances","8398","Services - Supplies & Services to users","27/09/2017"
"Wolverhampton City Council","http://opendatacommunities.org/id/metropolitan-district-council/wolverhampton","Amazon EU","15.17","Headstart Phase 3","5969","Stationery","27/09/2017"
"Wolverhampton City Council","http://opendatacommunities.org/id/metropolitan-district-council/wolverhampton","LOVE2SHOP.CO.UK","203.50","Healthy Lifestyles Team","8641","Educ Trips, Holidays, Outings, Activity","27/09/2017"
"Wolverhampton City Council","http://opendatacommunities.org/id/metropolitan-district-council/wolverhampton","B & Q 1243","101.25","Public Conveniences","5211","R&M - Departmental planned (external)","27/09/2017"
"Wolverhampton City Council","http://opendatacommunities.org/id/metropolitan-district-council/wolverhampton","Amazon EU","45.99","Strategic ICTS (ICT Serv Budget)","5969","Equipment - Purchase","27/09/2017"
"Wolverhampton City Council","http://opendatacommunities.org/id/metropolitan-district-council/wolverhampton","PAYPAL  EUROSOFT UK","208.95","Strategic ICTS (ICT Serv Budget)","5734","Computing - Purchase of Software","27/09/2017"
"Wolverhampton City Council","http://opendatacommunities.org/id/metropolitan-district-council/wolverhampton","PAYPAL  PSAPARTSLTD","178.58","Strategic ICTS (ICT Serv Budget)","5732","Equipment - Purchase","27/09/2017"
"Wolverhampton City Council","http://opendatacommunities.org/id/metropolitan-district-council/wolverhampton","PAYPAL  BANANAPRINT","225.33","Headstart Phase 3","8931","Printing","26/09/2017"
"Wolverhampton City Council","http://opendatacommunities.org/id/metropolitan-district-council/wolverhampton","B&M RETAIL","10.82","Headstart - Young People Engagement","5310","Equipment - Purchase","26/09/2017"
"Wolverhampton City Council","http://opendatacommunities.org/id/metropolitan-district-council/wolverhampton","B&M RETAIL","21.67","Headstart Phase 3","5310","Equipment - Purchase","26/09/2017"
"Wolverhampton City Council","http://opendatacommunities.org/id/metropolitan-district-council/wolverhampton","HOME BARGAINS WOLVERHA","14.50","Headstart Phase 3","5251","Equipment - Purchase","26/09/2017"
"Wolverhampton City Council","http://opendatacommunities.org/id/metropolitan-district-council/wolverhampton","HOME BARGAINS WOLVERHA","17.97","Headstart - Young People Engagement","5251","Equipment - Purchase","26/09/2017"
"Wolverhampton City Council","http://opendatacommunities.org/id/metropolitan-district-council/wolverhampton","SCREWFIX DIRECT","8.32","Statutory Services (10RM)","5211","Materials","26/09/2017"
"Wolverhampton City Council","http://opendatacommunities.org/id/metropolitan-district-council/wolverhampton","ASDA HOME SHOPPING","2.50","Upper Pendeford Farm Childrens Home","5411","Provisions (Not for resale)","26/09/2017"
"Wolverhampton City Council","http://opendatacommunities.org/id/metropolitan-district-council/wolverhampton","REDWINGS LODGE","349.65","CIN/CP Social Work Unit - Area 7","7011","No Recourse to Public Funds","26/09/2017"
"Wolverhampton City Council","http://opendatacommunities.org/id/metropolitan-district-council/wolverhampton","EE LIMITED R501","8.33","School Crossing Patrol","4812","Comms - Mobile Telephones","26/09/2017"
"Wolverhampton City Council","http://opendatacommunities.org/id/metropolitan-district-council/wolverhampton","ASDA HOME SHOPPING","70.55","Ernest Bold Court","5411","Provisions (Not for resale)","26/09/2017"
"Wolverhampton City Council","http://opendatacommunities.org/id/metropolitan-district-council/wolverhampton","E01350800000000","90.00","Ernest Bold Court","6011","Services - Supplies & Services to users","26/09/2017"
"Wolverhampton City Council","http://opendatacommunities.org/id/metropolitan-district-council/wolverhampton","Amazon UK Marketplace","18.32","Children & Family Contact Services","5942","Books","26/09/2017"
"Wolverhampton City Council","http://opendatacommunities.org/id/metropolitan-district-council/wolverhampton","ARGOS RETAIL GROUP","47.45","Ernest Bold Court","5310","Equipment - Purchase","26/09/2017"
"Wolverhampton City Council","http://opendatacommunities.org/id/metropolitan-district-council/wolverhampton","B&M RETAIL","39.15","LAC Transitions Team","5310","Client Allowances","26/09/2017"
"Wolverhampton City Council","http://opendatacommunities.org/id/metropolitan-district-council/wolverhampton","Trainline","63.60","Assessment Team (West)","4112","Public Transport","26/09/2017"
"Wolverhampton City Council","http://opendatacommunities.org/id/metropolitan-district-council/wolverhampton","Amazon UK Marketplace","90.44","Equalities","5942","Equipment - Purchase","26/09/2017"
"Wolverhampton City Council","http://opendatacommunities.org/id/metropolitan-district-council/wolverhampton","Virgin Trains","139.30","Scrutiny & Transparency","4112","Public Transport","26/09/2017"
"Wolverhampton City Council","http://opendatacommunities.org/id/metropolitan-district-council/wolverhampton","Amazon Prime","7.99","Equalities","5968","Subscriptions","26/09/2017"
"Wolverhampton City Council","http://opendatacommunities.org/id/metropolitan-district-council/wolverhampton","E01510300000000","41.67","Emergency Duty Team","6011","Financial Assistance In Exceptional Circ","26/09/2017"
"Wolverhampton City Council","http://opendatacommunities.org/id/metropolitan-district-council/wolverhampton","Trainline","187.17","MASH","4112","Public Transport","26/09/2017"
"Wolverhampton City Council","http://opendatacommunities.org/id/metropolitan-district-council/wolverhampton","Trainline","117.30","MASH","4112","Public Transport","26/09/2017"
"Wolverhampton City Council","http://opendatacommunities.org/id/metropolitan-district-council/wolverhampton","ROYAL CARPETS","391.67","LAC Transitions Team","5713","Client Allowances","26/09/2017"
"Wolverhampton City Council","http://opendatacommunities.org/id/metropolitan-district-council/wolverhampton","HAMPSHIREFL","296.16","Communications & Marketing - General","5949","Materials","26/09/2017"
"Wolverhampton City Council","http://opendatacommunities.org/id/metropolitan-district-council/wolverhampton","Amazon UK Marketplace","45.82","Headstart Phase 3","5942","Equipment - Purchase","26/09/2017"
"Wolverhampton City Council","http://opendatacommunities.org/id/metropolitan-district-council/wolverhampton","Amazon UK Marketplace","19.97","Headstart Phase 3","5942","Equipment - Purchase","26/09/2017"
"Wolverhampton City Council","http://opendatacommunities.org/id/metropolitan-district-council/wolverhampton","HFE SIGNS LTD","620.10","Headstart Phase 3","2741","Marketing \ Non-staff advertising","26/09/2017"
"Wolverhampton City Council","http://opendatacommunities.org/id/metropolitan-district-council/wolverhampton","B&M RETAIL","59.14","Headstart Phase 3","5310","Equipment - Purchase","26/09/2017"
"Wolverhampton City Council","http://opendatacommunities.org/id/metropolitan-district-council/wolverhampton","CARVER/WOLVERHAMPTON/L","18.61","Wholesale Market Facilities Management","5211","Equipment - Purchase","26/09/2017"
"Wolverhampton City Council","http://opendatacommunities.org/id/metropolitan-district-council/wolverhampton","Virgin Trains","9.40","Planning","4112","Public Transport","26/09/2017"
"Wolverhampton City Council","http://opendatacommunities.org/id/metropolitan-district-council/wolverhampton","BAKER ROSS LTD","-12.98","EIP Locality 2","5970","Equipment - Purchase","26/09/2017"
"Wolverhampton City Council","http://opendatacommunities.org/id/metropolitan-district-council/wolverhampton","WWW.SMARTKIDS2.CO.UK","-59.99","EIP Locality 2","8299","Equipment - Purchase","26/09/2017"
"Wolverhampton City Council","http://opendatacommunities.org/id/metropolitan-district-council/wolverhampton","Trainline","19.23","SEN Special Education Admin","4112","Public Transport","26/09/2017"
"Wolverhampton City Council","http://opendatacommunities.org/id/metropolitan-district-council/wolverhampton","AMAZON UK RETAIL AMAZO","10.69","Global Budgets","5999","Books","26/09/2017"
"Wolverhampton City Council","http://opendatacommunities.org/id/metropolitan-district-council/wolverhampton","AMAZON.CO.UK","3.29","Global Budgets","5942","Books","26/09/2017"
"Wolverhampton City Council","http://opendatacommunities.org/id/metropolitan-district-council/wolverhampton","AMAZON.CO.UK","2.80","Global Budgets","5942","Books","26/09/2017"
"Wolverhampton City Council","http://opendatacommunities.org/id/metropolitan-district-council/wolverhampton","BRITANNIA WOLVERHA","-744.17","CIN/CP Social Work Unit - Area 5","7011","Section 17","26/09/2017"
"Wolverhampton City Council","http://opendatacommunities.org/id/metropolitan-district-council/wolverhampton","BRITANNIA","195.83","CIN/CP Social Work Unit - Area 5","7011","Section 17","26/09/2017"
"Wolverhampton City Council","http://opendatacommunities.org/id/metropolitan-district-council/wolverhampton","BRITANNIA","135.00","CIN/CP Social Work Unit - Area 5","7011","Section 17","26/09/2017"
"Wolverhampton City Council","http://opendatacommunities.org/id/metropolitan-district-council/wolverhampton","BRITANNIA WOLVERHA","744.17","CIN/CP Social Work Unit - Area 5","7011","Section 17","26/09/2017"
"Wolverhampton City Council","http://opendatacommunities.org/id/metropolitan-district-council/wolverhampton","SPORTSDIRECT 231","19.03","LAC Transitions Team","5941","Equipment - Purchase","26/09/2017"
"Wolverhampton City Council","http://opendatacommunities.org/id/metropolitan-district-council/wolverhampton","B&M RETAIL LTD","44.97","LAC Transitions Team","5310","Equipment - Purchase","26/09/2017"
"Wolverhampton City Council","http://opendatacommunities.org/id/metropolitan-district-council/wolverhampton","EB  EVENT SAFETY AMP S","127.50","Civic Halls Non Direct Management A/C","7399","Training Expenses","26/09/2017"
"Wolverhampton City Council","http://opendatacommunities.org/id/metropolitan-district-council/wolverhampton","TOOLSTATION LTD","34.50","Education Catering - General Overheads","5251","Equipment - R & M","26/09/2017"
"Wolverhampton City Council","http://opendatacommunities.org/id/metropolitan-district-council/wolverhampton","SERVICE POINT","37.50","Global Budgets","2741","Publications","25/09/2017"
"Wolverhampton City Council","http://opendatacommunities.org/id/metropolitan-district-council/wolverhampton","123 REG R/T","19.98","Visitor Economy - Development","5968","Subscriptions","25/09/2017"
"Wolverhampton City Council","http://opendatacommunities.org/id/metropolitan-district-council/wolverhampton","Amazon UK Marketplace","1.66","Bantock House Museum","5942","Equipment - Health and Safety","25/09/2017"
"Wolverhampton City Council","http://opendatacommunities.org/id/metropolitan-district-council/wolverhampton","Trainline","128.57","Legal Services","4112","Public Transport","25/09/2017"
"Wolverhampton City Council","http://opendatacommunities.org/id/metropolitan-district-council/wolverhampton","Amazon UK Marketplace","0.82","Children & Family Contact Services","5942","Books","25/09/2017"
"Wolverhampton City Council","http://opendatacommunities.org/id/metropolitan-district-council/wolverhampton","POUNDWORLD RETAIL","10.04","Children & Family Contact Services","5310","Equipment - Purchase","25/09/2017"
"Wolverhampton City Council","http://opendatacommunities.org/id/metropolitan-district-council/wolverhampton","ALDI 48 772        S","27.47","Children & Family Contact Services","5411","Provisions (Not for resale)","25/09/2017"
"Wolverhampton City Council","http://opendatacommunities.org/id/metropolitan-district-council/wolverhampton","GRO HM PASSPORT OFFICE","-7.71","LAC Transitions Team","9399","Client Allowances","25/09/2017"
"Wolverhampton City Council","http://opendatacommunities.org/id/metropolitan-district-council/wolverhampton","GRO HM PASSPORT OFFICE","-7.71","LAC Transitions Team","9399","Client Allowances","25/09/2017"
"Wolverhampton City Council","http://opendatacommunities.org/id/metropolitan-district-council/wolverhampton","W M MORRISON PLC","10.00","CIN/CP Social Work Unit - Area 6","5411","No Recourse to Public Funds","25/09/2017"
"Wolverhampton City Council","http://opendatacommunities.org/id/metropolitan-district-council/wolverhampton","CURRYS ONLINE","124.99","CIN/CP Social Work Unit - Area 6","5732","No Recourse to Public Funds","25/09/2017"
"Wolverhampton City Council","http://opendatacommunities.org/id/metropolitan-district-council/wolverhampton","Wix.com","186.26","Technical Support","5817","Computing - Purchase of Software","25/09/2017"
"Wolverhampton City Council","http://opendatacommunities.org/id/metropolitan-district-council/wolverhampton","Amazon Prime","7.99","Technical Support","5968","Subscriptions","25/09/2017"
"Wolverhampton City Council","http://opendatacommunities.org/id/metropolitan-district-council/wolverhampton","AMAZON.CO.UK","4.47","Global Budgets","5942","Books","25/09/2017"
"Wolverhampton City Council","http://opendatacommunities.org/id/metropolitan-district-council/wolverhampton","CURRYS ONLINE","316.65","LAC Transitions Team","5732","Client Allowances","25/09/2017"
"Wolverhampton City Council","http://opendatacommunities.org/id/metropolitan-district-council/wolverhampton","NATWEST BANK","100.00","Democratic Support","6011","Public Transport","25/09/2017"
"Wolverhampton City Council","http://opendatacommunities.org/id/metropolitan-district-council/wolverhampton","CO-OPERATIVE TRAVE","1000.00","Leonardo Da Vinci Project","6051","Subsistence","25/09/2017"
"Wolverhampton City Council","http://opendatacommunities.org/id/metropolitan-district-council/wolverhampton","CO-OPERATIVE TRAVE","1000.00","Leonardo Da Vinci Project","6051","Subsistence","25/09/2017"
"Wolverhampton City Council","http://opendatacommunities.org/id/metropolitan-district-council/wolverhampton","CO-OPERATIVE TRAVE","939.83","Leonardo Da Vinci Project","6051","Subsistence","25/09/2017"
"Wolverhampton City Council","http://opendatacommunities.org/id/metropolitan-district-council/wolverhampton","BRITANNIA WOLVERHA","-321.87","CIN/CP Social Work Unit - Area 5","7011","Section 17","25/09/2017"
"Wolverhampton City Council","http://opendatacommunities.org/id/metropolitan-district-council/wolverhampton","BRITANNIA","744.17","CIN/CP Social Work Unit - Area 5","7011","Section 17","25/09/2017"
"Wolverhampton City Council","http://opendatacommunities.org/id/metropolitan-district-council/wolverhampton","BRITANNIA","135.00","CIN/CP Social Work Unit - Area 5","7011","Section 17","25/09/2017"
"Wolverhampton City Council","http://opendatacommunities.org/id/metropolitan-district-council/wolverhampton","CUMMINGS BROTHERS LOCK","11.25","Global Budgets","7399","Equipment - Purchase","25/09/2017"
"Wolverhampton City Council","http://opendatacommunities.org/id/metropolitan-district-council/wolverhampton","Virgin Trains","17.10","Audit Services","4112","Public Transport","25/09/2017"
"Wolverhampton City Council","http://opendatacommunities.org/id/metropolitan-district-council/wolverhampton","Amazon UK Marketplace","153.32","Corporate Procurement Unit","5942","Equipment - Purchase","25/09/2017"
"Wolverhampton City Council","http://opendatacommunities.org/id/metropolitan-district-council/wolverhampton","WM MORRISONS","67.94","Upper Pendeford Farm Childrens Home","5411","Provisions (Not for resale)","25/09/2017"
"Wolverhampton City Council","http://opendatacommunities.org/id/metropolitan-district-council/wolverhampton","PREMIER INN","195.00","MASH","3811","Services - Supplies & Services to users","25/09/2017"
"Wolverhampton City Council","http://opendatacommunities.org/id/metropolitan-district-council/wolverhampton","ROYAL CARPETS","287.50","LAC Transitions Team","5713","Client Allowances","25/09/2017"
"Wolverhampton City Council","http://opendatacommunities.org/id/metropolitan-district-council/wolverhampton","YOUNG`S SHOE REPAIRS L","45.00","Wolverhampton Indoor and Open Market","7251","Fixtures and Fittings - R&M","25/09/2017"
"Wolverhampton City Council","http://opendatacommunities.org/id/metropolitan-district-council/wolverhampton","YOUNG`S SHOE REPAIRS L","168.00","Wolverhampton Indoor and Open Market","7251","Fixtures and Fittings - R&M","25/09/2017"
"Wolverhampton City Council","http://opendatacommunities.org/id/metropolitan-district-council/wolverhampton","ASDA SUPERSTORE","29.61","CIN/CP Social Work Unit - Area 5","5411","Provisions (Not for resale)","25/09/2017"
"Wolverhampton City Council","http://opendatacommunities.org/id/metropolitan-district-council/wolverhampton","REGISTRARS OFFICE","20.00","CIN/CP Social Work Unit - Area 2","8299","Section 17","25/09/2017"
"Wolverhampton City Council","http://opendatacommunities.org/id/metropolitan-district-council/wolverhampton","Virgin Trains","79.60","Planning","4112","Public Transport","25/09/2017"
"Wolverhampton City Council","http://opendatacommunities.org/id/metropolitan-district-council/wolverhampton","PO WILLENHALL RD 5497","80.00","EIP Locality 1","6011","Grant Payments","25/09/2017"
"Wolverhampton City Council","http://opendatacommunities.org/id/metropolitan-district-council/wolverhampton","Virgin Trains","47.60","LAC Team","4112","Public Transport","25/09/2017"
"Wolverhampton City Council","http://opendatacommunities.org/id/metropolitan-district-council/wolverhampton","FEDEX 161089135","38.74","Contemporary Gallery","4215","Comms - Postage","25/09/2017"
"Wolverhampton City Council","http://opendatacommunities.org/id/metropolitan-district-council/wolverhampton","POST OFFICE COUNTER","10.82","Adoption and Residence Team & Allowances","9402","Comms - Postage","25/09/2017"
"Wolverhampton City Council","http://opendatacommunities.org/id/metropolitan-district-council/wolverhampton","HOTEL LAPEROUSE0374824","221.47","Headstart - Learning Technologies Team","7011","Accommodation Costs","25/09/2017"
"Wolverhampton City Council","http://opendatacommunities.org/id/metropolitan-district-council/wolverhampton","HOTEL LAPEROUSE0374824","332.19","Headstart - Learning Technologies Team","7011","Accommodation Costs","25/09/2017"
"Wolverhampton City Council","http://opendatacommunities.org/id/metropolitan-district-council/wolverhampton","THE POST OFFICE","85.25","IMPACT","9402","Comms - Postage","25/09/2017"
"Wolverhampton City Council","http://opendatacommunities.org/id/metropolitan-district-council/wolverhampton","AMAZON UK RETAIL AMAZO","46.55","Aldersley Leisure Village","5999","Equipment - Purchase","25/09/2017"
"Wolverhampton City Council","http://opendatacommunities.org/id/metropolitan-district-council/wolverhampton","MOTOR FUELS LTD","3.33","Mayoral Expenses","5541","Car Allowances","25/09/2017"
"Wolverhampton City Council","http://opendatacommunities.org/id/metropolitan-district-council/wolverhampton","HALFORDS 0411","20.52","Mayoral Expenses","5940","Materials","25/09/2017"
"Wolverhampton City Council","http://opendatacommunities.org/id/metropolitan-district-council/wolverhampton","Amazon UK Marketplace","54.01","EIP Locality 8","5942","Equipment - Hire","25/09/2017"
"Wolverhampton City Council","http://opendatacommunities.org/id/metropolitan-district-council/wolverhampton","Amazon UK Marketplace","9.99","EIP Locality 8","5942","Equipment - Hire","25/09/2017"
"Wolverhampton City Council","http://opendatacommunities.org/id/metropolitan-district-council/wolverhampton","Amazon UK Marketplace","5.90","EIP Locality 8","5942","Equipment - Hire","25/09/2017"
"Wolverhampton City Council","http://opendatacommunities.org/id/metropolitan-district-council/wolverhampton","NATIONAL EXPRESS LIMIT","16.70","LAC Transitions Team","4131","Client Allowances","25/09/2017"
"Wolverhampton City Council","http://opendatacommunities.org/id/metropolitan-district-council/wolverhampton","iZ  Shop in the Sq","10.00","Delivery & OCE Development","5999","Equipment - Purchase","22/09/2017"
"Wolverhampton City Council","http://opendatacommunities.org/id/metropolitan-district-council/wolverhampton","WWW.CALUMETPHOTO.CO.UK","41.66","Communications & Marketing - General","5946","Equipment - Purchase","22/09/2017"
"Wolverhampton City Council","http://opendatacommunities.org/id/metropolitan-district-council/wolverhampton","WWW.PRIMARYTEACHING.CO","73.26","Headstart Phase 3","5943","Stationery","22/09/2017"
"Wolverhampton City Council","http://opendatacommunities.org/id/metropolitan-district-council/wolverhampton","THE COURSE MIX","19.00","IMPACT","8299","Training Expenses","22/09/2017"
"Wolverhampton City Council","http://opendatacommunities.org/id/metropolitan-district-council/wolverhampton","WOLVERHAMPTON CC","6.50","IMPACT","7523","Car Allowances","22/09/2017"
"Wolverhampton City Council","http://opendatacommunities.org/id/metropolitan-district-council/wolverhampton","TVLICENSING.CO.UK","122.50","Aldersley Leisure Village","7392","Services - Consultants","22/09/2017"
"Wolverhampton City Council","http://opendatacommunities.org/id/metropolitan-district-council/wolverhampton","E01353600000000","100.00","Childrens with Disabilities Team","6011","No Recourse to Public Funds","22/09/2017"
"Wolverhampton City Council","http://opendatacommunities.org/id/metropolitan-district-council/wolverhampton","E01353600000000","250.00","Childrens with Disabilities Team","6011","No Recourse to Public Funds","22/09/2017"
"Wolverhampton City Council","http://opendatacommunities.org/id/metropolitan-district-council/wolverhampton","ARGOS RETAIL GROUP","12.60","LAC Transitions Team","5310","Client Allowances","22/09/2017"
"Wolverhampton City Council","http://opendatacommunities.org/id/metropolitan-district-council/wolverhampton","AMAZON.CO.UK","11.74","Public Health Support Costs","5942","Equipment - Purchase","22/09/2017"
"Wolverhampton City Council","http://opendatacommunities.org/id/metropolitan-district-council/wolverhampton","LOVE2SHOP.CO.UK","203.50","Healthy Lifestyles Team","8641","Educ Trips, Holidays, Outings, Activity","22/09/2017"
"Wolverhampton City Council","http://opendatacommunities.org/id/metropolitan-district-council/wolverhampton","POUNDLAND LTD 1463","8.10","Public Health Support Costs","5310","Equipment - Purchase","22/09/2017"
"Wolverhampton City Council","http://opendatacommunities.org/id/metropolitan-district-council/wolverhampton","REGISTRARS OFFICE","9.17","LAC Transitions Team","8299","Client Allowances","22/09/2017"
"Wolverhampton City Council","http://opendatacommunities.org/id/metropolitan-district-council/wolverhampton","TVLICENSING.CO.UK","122.50","LAC Transitions Team","7392","Client Allowances","22/09/2017"
"Wolverhampton City Council","http://opendatacommunities.org/id/metropolitan-district-council/wolverhampton","REGISTRARS OFFICE","20.00","Adoption and Residence Team & Allowances","8299","Services - Fees and Charges","22/09/2017"
"Wolverhampton City Council","http://opendatacommunities.org/id/metropolitan-district-council/wolverhampton","Virgin Trains","188.00","Adoption and Residence Team & Allowances","4112","Public Transport","22/09/2017"
"Wolverhampton City Council","http://opendatacommunities.org/id/metropolitan-district-council/wolverhampton","Virgin Trains","169.30","Adoption and Residence Team & Allowances","4112","Public Transport","22/09/2017"
"Wolverhampton City Council","http://opendatacommunities.org/id/metropolitan-district-council/wolverhampton","E01510300000000","58.33","Emergency Duty Team","6011","Financial Assistance In Exceptional Circ","22/09/2017"
"Wolverhampton City Council","http://opendatacommunities.org/id/metropolitan-district-council/wolverhampton","Trainline","38.56","Research & Development","4112","Public Transport","22/09/2017"
"Wolverhampton City Council","http://opendatacommunities.org/id/metropolitan-district-council/wolverhampton","AMZ Amazon.co.uk","-121.01","Headstart Phase 3","5999","Equipment - Purchase","22/09/2017"
"Wolverhampton City Council","http://opendatacommunities.org/id/metropolitan-district-council/wolverhampton","WOLVERHAMPTON CC","8.33","Headstart Phase 3","7523","Parking Fees","22/09/2017"
"Wolverhampton City Council","http://opendatacommunities.org/id/metropolitan-district-council/wolverhampton","Virgin Trains","122.70","Housing Regeneration - Strategy & Dev","4112","Public Transport","22/09/2017"
"Wolverhampton City Council","http://opendatacommunities.org/id/metropolitan-district-council/wolverhampton","TESCO STORES 5397","10.24","EIP Locality 1","5411","Grant Payments","22/09/2017"
"Wolverhampton City Council","http://opendatacommunities.org/id/metropolitan-district-council/wolverhampton","WWW.ARGOS.CO.UK","279.99","EIP Locality 1","5310","Grant Payments","22/09/2017"
"Wolverhampton City Council","http://opendatacommunities.org/id/metropolitan-district-council/wolverhampton","ARGOS RETAIL GROUP","8.90","EIP Locality 2","5310","Grant Payments","22/09/2017"
"Wolverhampton City Council","http://opendatacommunities.org/id/metropolitan-district-council/wolverhampton","Amazon UK Marketplace","139.80","EIP Locality 2","5942","Equipment - Purchase","22/09/2017"
"Wolverhampton City Council","http://opendatacommunities.org/id/metropolitan-district-council/wolverhampton","POST OFFICE COUNTER","65.00","Vulnerable Young Persons Team","9402","Comms - Postage","22/09/2017"
"Wolverhampton City Council","http://opendatacommunities.org/id/metropolitan-district-council/wolverhampton","POUNDWORLD RETAIL","18.40","Carers Support","5310","Catering","22/09/2017"
"Wolverhampton City Council","http://opendatacommunities.org/id/metropolitan-district-council/wolverhampton","Amazon EU","5.24","Global Budgets","5969","Books","22/09/2017"
"Wolverhampton City Council","http://opendatacommunities.org/id/metropolitan-district-council/wolverhampton","WEBFLOW.COM","320.25","Strategic ICTS (ICT Serv Budget)","7372","Services - Professional Fees","22/09/2017"
"Wolverhampton City Council","http://opendatacommunities.org/id/metropolitan-district-council/wolverhampton","Trainline","246.33","LAC Transitions Team","4112","Client Allowances","22/09/2017"
"Wolverhampton City Council","http://opendatacommunities.org/id/metropolitan-district-council/wolverhampton","CODSALL SST","7.92","Legal Services","4112","Public Transport","22/09/2017"
"Wolverhampton City Council","http://opendatacommunities.org/id/metropolitan-district-council/wolverhampton","Virgin Trains","106.00","Corporate Procurement Unit","4112","Public Transport","22/09/2017"
"Wolverhampton City Council","http://opendatacommunities.org/id/metropolitan-district-council/wolverhampton","Virgin Trains","91.00","Corporate Procurement Unit","4112","Public Transport","22/09/2017"
"Wolverhampton City Council","http://opendatacommunities.org/id/metropolitan-district-council/wolverhampton","REGISTRARS OFFICE","30.00","Legal Services","8299","Services - Professional Fees","22/09/2017"
"Wolverhampton City Council","http://opendatacommunities.org/id/metropolitan-district-council/wolverhampton","CENTRAL BOOKS LTD","3.50","SEN Early Years Team","5965","Equipment - Purchase","22/09/2017"
"Wolverhampton City Council","http://opendatacommunities.org/id/metropolitan-district-council/wolverhampton","CONNELLS CLIENT ACCOUN","330.00","CIN/CP Social Work Unit - Area 1","8999","No Recourse to Public Funds","22/09/2017"
"Wolverhampton City Council","http://opendatacommunities.org/id/metropolitan-district-council/wolverhampton","Amazon EU","38.67","Parks - Ranger Service","5969","Equipment - Purchase","22/09/2017"
"Wolverhampton City Council","http://opendatacommunities.org/id/metropolitan-district-council/wolverhampton","W M MORRISON PLC","32.00","CIN/CP Social Work Unit - Area 6","5411","No Recourse to Public Funds","22/09/2017"
"Wolverhampton City Council","http://opendatacommunities.org/id/metropolitan-district-council/wolverhampton","000002200500000","250.00","CIN/CP Social Work Unit - Area 6","6011","Financial Assistance In Exceptional Circ","22/09/2017"
"Wolverhampton City Council","http://opendatacommunities.org/id/metropolitan-district-council/wolverhampton","NCP BIRMINGHAM AIRPORT","52.47","Headstart - Learning Technologies Team","7523","Parking Fees","22/09/2017"
"Wolverhampton City Council","http://opendatacommunities.org/id/metropolitan-district-council/wolverhampton","WILKO RETAIL LIMIT","5.83","LAC Transitions Team","5722","Client Allowances","22/09/2017"
"Wolverhampton City Council","http://opendatacommunities.org/id/metropolitan-district-council/wolverhampton","ARGOS LTD","185.82","LAC Transitions Team","5310","Client Allowances","22/09/2017"
"Wolverhampton City Council","http://opendatacommunities.org/id/metropolitan-district-council/wolverhampton","BRITANNIA","45.83","CIN/CP Social Work Unit - Area 5","7011","Section 17","22/09/2017"
"Wolverhampton City Council","http://opendatacommunities.org/id/metropolitan-district-council/wolverhampton","FACEBK Y7UGRCS982","164.14","Audience Development","7311","Marketing \ Non-staff advertising","22/09/2017"
"Wolverhampton City Council","http://opendatacommunities.org/id/metropolitan-district-council/wolverhampton","FACEBK X7UGRCS982","235.90","Audience Development","7311","Marketing \ Non-staff advertising","22/09/2017"
"Wolverhampton City Council","http://opendatacommunities.org/id/metropolitan-district-council/wolverhampton","LIDL UK","14.95","CIN/CP Social Work Unit - Area 7","5411","Section 17","22/09/2017"
"Wolverhampton City Council","http://opendatacommunities.org/id/metropolitan-district-council/wolverhampton","MBL SEMINARS","120.00","Central Training","8299","Training Expenses","22/09/2017"
"Wolverhampton City Council","http://opendatacommunities.org/id/metropolitan-district-council/wolverhampton","MBL SEMINARS","60.00","Central Training","8299","Training Expenses","22/09/2017"
"Wolverhampton City Council","http://opendatacommunities.org/id/metropolitan-district-council/wolverhampton","NO 5 CHAMBERS LTD","195.00","Central Training","8111","Training Expenses","22/09/2017"
"Wolverhampton City Council","http://opendatacommunities.org/id/metropolitan-district-council/wolverhampton","CARESHOP","71.96","Ernest Bold Court","5999","Equipment - Purchase","22/09/2017"
"Wolverhampton City Council","http://opendatacommunities.org/id/metropolitan-district-council/wolverhampton","REGISTRARS OFFICE","40.00","Legal Services","8299","Services - Professional Fees","22/09/2017"
"Wolverhampton City Council","http://opendatacommunities.org/id/metropolitan-district-council/wolverhampton","REGISTRARS OFFICE","7.00","Legal Services","8299","Services - Professional Fees","22/09/2017"
"Wolverhampton City Council","http://opendatacommunities.org/id/metropolitan-district-council/wolverhampton","LOYD WEDNESFIELD WOLVE","200.00","EIP Locality 8","6011","Grant Payments","21/09/2017"
"Wolverhampton City Council","http://opendatacommunities.org/id/metropolitan-district-council/wolverhampton","Amazon EU","39.98","Strategic ICTS (ICT Serv Budget)","5969","Equipment - Purchase","21/09/2017"
"Wolverhampton City Council","http://opendatacommunities.org/id/metropolitan-district-council/wolverhampton","Trainline","115.16","LAC Transitions Team","4112","Public Transport","21/09/2017"
"Wolverhampton City Council","http://opendatacommunities.org/id/metropolitan-district-council/wolverhampton","CROWN PROPERTY SERVICE","280.00","CIN/CP Social Work Unit - Area 3","7011","Services - Supplies & Services to users","21/09/2017"
"Wolverhampton City Council","http://opendatacommunities.org/id/metropolitan-district-council/wolverhampton","WWW.ARGOS.CO.UK","254.94","CIN/CP Social Work Unit - Area 3","5310","Equipment - Purchase","21/09/2017"
"Wolverhampton City Council","http://opendatacommunities.org/id/metropolitan-district-council/wolverhampton","THE QUEEN VICTORIA HOT","80.00","Emergency Duty Team","7011","Services - Supplies & Services to users","21/09/2017"
"Wolverhampton City Council","http://opendatacommunities.org/id/metropolitan-district-council/wolverhampton","EURO PRESENTATIONS LTD","348.00","Quality Assurance & Policies","8999","Services - Professional Fees","21/09/2017"
"Wolverhampton City Council","http://opendatacommunities.org/id/metropolitan-district-council/wolverhampton","WWW.WMCA.CO.UK","93.75","EIP Locality 6","9399","Client Transport","21/09/2017"
"Wolverhampton City Council","http://opendatacommunities.org/id/metropolitan-district-council/wolverhampton","ROYAL SOCIETY FOR","22.50","Work Related Studies","8398","Equipment - Purchase","21/09/2017"
"Wolverhampton City Council","http://opendatacommunities.org/id/metropolitan-district-council/wolverhampton","WOLVERHAMPTON CC","2.50","Headstart Phase 3","7523","Parking Fees","21/09/2017"
"Wolverhampton City Council","http://opendatacommunities.org/id/metropolitan-district-council/wolverhampton","WM MORRISON 024","67.61","Ernest Bold Court","5411","Provisions (Not for resale)","21/09/2017"
"Wolverhampton City Council","http://opendatacommunities.org/id/metropolitan-district-council/wolverhampton","ROAD KING","63.59","Hostels / Outreach","5812","Accommodation Costs","21/09/2017"
"Wolverhampton City Council","http://opendatacommunities.org/id/metropolitan-district-council/wolverhampton","INTERIORS ITALIA","241.67","Democratic Support","5712","Equipment - Purchase","21/09/2017"
"Wolverhampton City Council","http://opendatacommunities.org/id/metropolitan-district-council/wolverhampton","TFM FARM & COUNTRY SUP","112.80","Northicote Farm","5399","Materials","21/09/2017"
"Wolverhampton City Council","http://opendatacommunities.org/id/metropolitan-district-council/wolverhampton","TFM FARM & COUNTRY SUP","210.94","Northicote Farm","5399","Equipment - R & M","21/09/2017"
"Wolverhampton City Council","http://opendatacommunities.org/id/metropolitan-district-council/wolverhampton","000002200500000","250.00","CIN/CP Social Work Unit - Area 6","6011","Financial Assistance In Exceptional Circ","21/09/2017"
"Wolverhampton City Council","http://opendatacommunities.org/id/metropolitan-district-council/wolverhampton","WAYFAIR STORES LIM","85.82","CIN/CP Social Work Unit - Area 6","5965","No Recourse to Public Funds","21/09/2017"
"Wolverhampton City Council","http://opendatacommunities.org/id/metropolitan-district-council/wolverhampton","WWW.TONERGIANT.CO.UK","201.58","Headstart Phase 3","5943","Stationery","21/09/2017"
"Wolverhampton City Council","http://opendatacommunities.org/id/metropolitan-district-council/wolverhampton","Amazon EU","46.46","Headstart Phase 3","5969","Stationery","21/09/2017"
"Wolverhampton City Council","http://opendatacommunities.org/id/metropolitan-district-council/wolverhampton","HOVER","76.42","Headstart Phase 3","7372","Computing - Purchase of Software","21/09/2017"
"Wolverhampton City Council","http://opendatacommunities.org/id/metropolitan-district-council/wolverhampton","ALLENS TAXIS","40.00","AES Staff Development","4121","Client Transport","21/09/2017"
"Wolverhampton City Council","http://opendatacommunities.org/id/metropolitan-district-council/wolverhampton","WAYFAIR STORES LIM","74.99","Mayoral Expenses","5965","Equipment - Purchase","21/09/2017"
"Wolverhampton City Council","http://opendatacommunities.org/id/metropolitan-district-council/wolverhampton","PRINTCARRIER.COM","51.40","Civic Hall Out-house Promotions","2741","Marketing \ Non-staff advertising","21/09/2017"
"Wolverhampton City Council","http://opendatacommunities.org/id/metropolitan-district-council/wolverhampton","Trainline","67.83","CIN/CP Social Work Unit - Area 4","4112","Public Transport","21/09/2017"
"Wolverhampton City Council","http://opendatacommunities.org/id/metropolitan-district-council/wolverhampton","BEATTIES","100.00","Civic Centre Catering","5311","Equipment - Purchase","21/09/2017"
"Wolverhampton City Council","http://opendatacommunities.org/id/metropolitan-district-council/wolverhampton","BEATTIES","200.00","Civic Centre Catering","5311","Equipment - Purchase","21/09/2017"
"Wolverhampton City Council","http://opendatacommunities.org/id/metropolitan-district-council/wolverhampton","B & Q 1243","26.67","Education Catering - General Overheads","5211","Materials","21/09/2017"
"Wolverhampton City Council","http://opendatacommunities.org/id/metropolitan-district-council/wolverhampton","Trainline","9.03","Legal Services","4112","Public Transport","21/09/2017"
"Wolverhampton City Council","http://opendatacommunities.org/id/metropolitan-district-council/wolverhampton","STRIKING DISPLAYS","473.88","Michael Lyons","5085","Equipment - Purchase","21/09/2017"
"Wolverhampton City Council","http://opendatacommunities.org/id/metropolitan-district-council/wolverhampton","WICKES","35.99","Northicote Farm","5211","Materials","21/09/2017"
"Wolverhampton City Council","http://opendatacommunities.org/id/metropolitan-district-council/wolverhampton","PREMIER INN","191.62","Adoption and Residence Team & Allowances","3811","Accommodation Costs","21/09/2017"
"Wolverhampton City Council","http://opendatacommunities.org/id/metropolitan-district-council/wolverhampton","AMAZON.CO.UK","4.18","Towers Outdoor Education Centre","5942","Fixtures and Fittings - Purchases","21/09/2017"
"Wolverhampton City Council","http://opendatacommunities.org/id/metropolitan-district-council/wolverhampton","Amazon UK Marketplace","63.99","Towers Outdoor Education Centre","5942","Equipment - Purchase","21/09/2017"
"Wolverhampton City Council","http://opendatacommunities.org/id/metropolitan-district-council/wolverhampton","B & Q 1243","34.38","Public Conveniences","5211","R&M - Departmental planned (external)","21/09/2017"
"Wolverhampton City Council","http://opendatacommunities.org/id/metropolitan-district-council/wolverhampton","DERBY C CNCL TEL PAYME","402.11","Housing Public Health","9399","Training Expenses","21/09/2017"
"Wolverhampton City Council","http://opendatacommunities.org/id/metropolitan-district-council/wolverhampton","DIRECT CARPETS","120.00","EIP Locality 1","5713","Grant Payments","21/09/2017"
"Wolverhampton City Council","http://opendatacommunities.org/id/metropolitan-district-council/wolverhampton","TOOLED UP COM","110.85","Planning","5251","Protective Clothing","21/09/2017"
"Wolverhampton City Council","http://opendatacommunities.org/id/metropolitan-district-council/wolverhampton","LIDDELL ELECTRICAL DIS","27.93","Condition Surveys","5065","Equipment - R & M","21/09/2017"
"Wolverhampton City Council","http://opendatacommunities.org/id/metropolitan-district-council/wolverhampton","WEST MID TRAVEL","446.85","Community Enablement","4131","Public Transport","21/09/2017"
"Wolverhampton City Council","http://opendatacommunities.org/id/metropolitan-district-council/wolverhampton","Amazon UK Marketplace","26.09","SEN Sensory Inclusion","5942","Equipment - Purchase","21/09/2017"
"Wolverhampton City Council","http://opendatacommunities.org/id/metropolitan-district-council/wolverhampton","CLAREGATE S.STN FS408","6.00","Blakenhall Resource Centre","5541","Petrol","21/09/2017"
"Wolverhampton City Council","http://opendatacommunities.org/id/metropolitan-district-council/wolverhampton","WEST COAST TRAINS","27.00","Education And Access","4112","Public Transport","21/09/2017"
"Wolverhampton City Council","http://opendatacommunities.org/id/metropolitan-district-council/wolverhampton","BRITANNIA WOLVERHA","185.83","CIN/CP Social Work Unit - Area 5","7011","Section 17","21/09/2017"
"Wolverhampton City Council","http://opendatacommunities.org/id/metropolitan-district-council/wolverhampton","HMV RETAIL LTD","9.16","Global Budgets","5735","Computing - Purchase of Software","21/09/2017"
"Wolverhampton City Council","http://opendatacommunities.org/id/metropolitan-district-council/wolverhampton","Amazon EU","6.99","Global Budgets","5969","Books","21/09/2017"
"Wolverhampton City Council","http://opendatacommunities.org/id/metropolitan-district-council/wolverhampton","ARGOS LTD","9.99","Strategic Director Place","5310","Equipment - Purchase","21/09/2017"
"Wolverhampton City Council","http://opendatacommunities.org/id/metropolitan-district-council/wolverhampton","E00783400000000","10.00","EIP Locality 1","6011","Grant Payments","20/09/2017"
"Wolverhampton City Council","http://opendatacommunities.org/id/metropolitan-district-council/wolverhampton","Trainline","78.54","Research & Development","4112","Public Transport","20/09/2017"
"Wolverhampton City Council","http://opendatacommunities.org/id/metropolitan-district-council/wolverhampton","Virgin Trains","8.10","Children & Young People Support Costs","4112","Public Transport","20/09/2017"
"Wolverhampton City Council","http://opendatacommunities.org/id/metropolitan-district-council/wolverhampton","REGISTRARS OFFICE","10.00","LAC Transitions Team","8299","Client Allowances","20/09/2017"
"Wolverhampton City Council","http://opendatacommunities.org/id/metropolitan-district-council/wolverhampton","BRITANNIA WOLVERHA","488.96","CIN/CP Social Work Unit - Area 5","7011","Section 17","20/09/2017"
"Wolverhampton City Council","http://opendatacommunities.org/id/metropolitan-district-council/wolverhampton","CT WOLVERHAMPTON","53.00","LAC Transitions Team","8398","Services - Supplies & Services to users","20/09/2017"
"Wolverhampton City Council","http://opendatacommunities.org/id/metropolitan-district-council/wolverhampton","HOME BARGAINS WOLVERHA","9.98","Education Catering - General Overheads","5251","Equipment - Purchase","20/09/2017"
"Wolverhampton City Council","http://opendatacommunities.org/id/metropolitan-district-council/wolverhampton","Trainline","117.81","Assessment Team (West)","4112","Public Transport","20/09/2017"
"Wolverhampton City Council","http://opendatacommunities.org/id/metropolitan-district-council/wolverhampton","Trainline","152.49","Assessment Team (West)","4112","Public Transport","20/09/2017"
"Wolverhampton City Council","http://opendatacommunities.org/id/metropolitan-district-council/wolverhampton","TESCO STORES 5194","76.02","Towers Outdoor Education Centre","5411","Provisions (Not for resale)","20/09/2017"
"Wolverhampton City Council","http://opendatacommunities.org/id/metropolitan-district-council/wolverhampton","WWW.GOCABLETIES.CO.UK","14.52","Towers Outdoor Education Centre","5732","Equipment - Purchase","20/09/2017"
"Wolverhampton City Council","http://opendatacommunities.org/id/metropolitan-district-council/wolverhampton","Amazon UK Marketplace","16.99","Towers Outdoor Education Centre","5942","Equipment - Purchase","20/09/2017"
"Wolverhampton City Council","http://opendatacommunities.org/id/metropolitan-district-council/wolverhampton","000002200500000","250.00","CIN/CP Social Work Unit - Area 6","6011","Financial Assistance In Exceptional Circ","20/09/2017"
"Wolverhampton City Council","http://opendatacommunities.org/id/metropolitan-district-council/wolverhampton","GO CARZ","13.64","Emergency Duty Team","4121","Client Transport","20/09/2017"
"Wolverhampton City Council","http://opendatacommunities.org/id/metropolitan-district-council/wolverhampton","ROAD KING","44.00","Emergency Duty Team","5812","Accommodation Costs","20/09/2017"
"Wolverhampton City Council","http://opendatacommunities.org/id/metropolitan-district-council/wolverhampton","Amazon EU","19.95","Aldersley Leisure Village","5969","Equipment - Purchase","20/09/2017"
"Wolverhampton City Council","http://opendatacommunities.org/id/metropolitan-district-council/wolverhampton","Trainline","12.60","AES Staff Development","4112","Public Transport","20/09/2017"
"Wolverhampton City Council","http://opendatacommunities.org/id/metropolitan-district-council/wolverhampton","ASDA SUPERSTORE","12.78","Mayoral Expenses","5411","Provisions (Not for resale)","20/09/2017"
"Wolverhampton City Council","http://opendatacommunities.org/id/metropolitan-district-council/wolverhampton","HMCOURTS-SERVICE.G","20.00","LAC Transitions Team","9222","Client Allowances","20/09/2017"
"Wolverhampton City Council","http://opendatacommunities.org/id/metropolitan-district-council/wolverhampton","Trainline","81.09","Youth Offending Team","4112","Public Transport","20/09/2017"
"Wolverhampton City Council","http://opendatacommunities.org/id/metropolitan-district-council/wolverhampton","Amazon EU","46.95","Strategic ICTS (ICT Serv Budget)","5969","Equipment - Purchase","20/09/2017"
"Wolverhampton City Council","http://opendatacommunities.org/id/metropolitan-district-council/wolverhampton","GO CARZ","3.15","MASH","4121","Client Transport","20/09/2017"
"Wolverhampton City Council","http://opendatacommunities.org/id/metropolitan-district-council/wolverhampton","HIGHFIELD HOUSE HO","385.00","CIN/CP Social Work Unit - Area 3","7011","Services - Supplies & Services to users","20/09/2017"
"Wolverhampton City Council","http://opendatacommunities.org/id/metropolitan-district-council/wolverhampton","EB  ELECTRIC VEHICLE C","143.90","Licensing - H.Carriage/Pr.Hire Vehicles","7399","Conference Expenses","20/09/2017"
"Wolverhampton City Council","http://opendatacommunities.org/id/metropolitan-district-council/wolverhampton","CARVER/WOLVERHAMPTON/L","39.91","Ground Maintenance East","5211","Materials","19/09/2017"
"Wolverhampton City Council","http://opendatacommunities.org/id/metropolitan-district-council/wolverhampton","HAMPSHIREFL","-136.39","Communications & Marketing - General","5949","Materials","19/09/2017"
"Wolverhampton City Council","http://opendatacommunities.org/id/metropolitan-district-council/wolverhampton","HAMPSHIREFL","-136.39","Communications & Marketing - General","5949","Materials","19/09/2017"
"Wolverhampton City Council","http://opendatacommunities.org/id/metropolitan-district-council/wolverhampton","DISPLAYS UK LTD","480.00","Communications & Marketing - General","2741","Publications","19/09/2017"
"Wolverhampton City Council","http://opendatacommunities.org/id/metropolitan-district-council/wolverhampton","WWW.DISPLAYSUK.CO.UK","247.00","Communications & Marketing - General","5999","Equipment - Purchase","19/09/2017"
"Wolverhampton City Council","http://opendatacommunities.org/id/metropolitan-district-council/wolverhampton","WISEPOPSCOM","37.41","City Direct","7372","Computing - Purchase of Software","19/09/2017"
"Wolverhampton City Council","http://opendatacommunities.org/id/metropolitan-district-council/wolverhampton","TVLICENSING.CO.UK","147.00","LAC Transitions Team","7392","Client Allowances","19/09/2017"
"Wolverhampton City Council","http://opendatacommunities.org/id/metropolitan-district-council/wolverhampton","ASDA HOME SHOPPING","-0.90","Upper Pendeford Farm Childrens Home","5411","Provisions (Not for resale)","19/09/2017"
"Wolverhampton City Council","http://opendatacommunities.org/id/metropolitan-district-council/wolverhampton","ASDA HOME SHOPPING","166.16","Upper Pendeford Farm Childrens Home","5411","Provisions (Not for resale)","19/09/2017"
"Wolverhampton City Council","http://opendatacommunities.org/id/metropolitan-district-council/wolverhampton","JOHNSONS","18.00","Central Costs","7210","Equipment - R & M","19/09/2017"
"Wolverhampton City Council","http://opendatacommunities.org/id/metropolitan-district-council/wolverhampton","THE QUEEN VICTORIA HOT","42.00","MASH","7011","Services - Supplies & Services to users","19/09/2017"
"Wolverhampton City Council","http://opendatacommunities.org/id/metropolitan-district-council/wolverhampton","WOLVERHAMPTON CC","2.50","Headstart Phase 3","7523","Parking Fees","19/09/2017"
"Wolverhampton City Council","http://opendatacommunities.org/id/metropolitan-district-council/wolverhampton","SCREWFIX DIRECT LT","24.98","Culwell Street Depot","5211","R&M - Departmental planned (external)","19/09/2017"
"Wolverhampton City Council","http://opendatacommunities.org/id/metropolitan-district-council/wolverhampton","Trainline","284.07","CIN/CP Social Work Unit - Area 8","4112","Public Transport","19/09/2017"
"Wolverhampton City Council","http://opendatacommunities.org/id/metropolitan-district-council/wolverhampton","EDUZONE LIMITED","41.88","EIP Locality 2","5945","Equipment - Purchase","19/09/2017"
"Wolverhampton City Council","http://opendatacommunities.org/id/metropolitan-district-council/wolverhampton","TESCO STORES 5397","7.81","EIP Locality 1","5411","Grant Payments","19/09/2017"
"Wolverhampton City Council","http://opendatacommunities.org/id/metropolitan-district-council/wolverhampton","FOOD EVENTS AND THINGS","55.00","Education Catering - General Overheads","7997","Subscriptions","19/09/2017"
"Wolverhampton City Council","http://opendatacommunities.org/id/metropolitan-district-council/wolverhampton","FLOWER POWER","25.00","EIP Locality 3","5992","Grant Payments","19/09/2017"
"Wolverhampton City Council","http://opendatacommunities.org/id/metropolitan-district-council/wolverhampton","B & Q 1243","20.83","Ernest Bold Court","5211","Equipment - R & M","19/09/2017"
"Wolverhampton City Council","http://opendatacommunities.org/id/metropolitan-district-council/wolverhampton","Virgin Trains","165.50","Education And Access","4112","Public Transport","19/09/2017"
"Wolverhampton City Council","http://opendatacommunities.org/id/metropolitan-district-council/wolverhampton","METRO INNS WALSALL","126.67","CIN/CP Social Work Unit - Area 5","7011","Section 17","19/09/2017"
"Wolverhampton City Council","http://opendatacommunities.org/id/metropolitan-district-council/wolverhampton","TOOLSTATION LTD","16.67","Education Catering - General Overheads","5251","Equipment - R & M","19/09/2017"
"Wolverhampton City Council","http://opendatacommunities.org/id/metropolitan-district-council/wolverhampton","ASDA HOME SHOPPING","-0.48","Ernest Bold Court","5411","Provisions (Not for resale)","19/09/2017"
"Wolverhampton City Council","http://opendatacommunities.org/id/metropolitan-district-council/wolverhampton","ASDA HOME SHOPPING","87.82","Ernest Bold Court","5411","Provisions (Not for resale)","19/09/2017"
"Wolverhampton City Council","http://opendatacommunities.org/id/metropolitan-district-council/wolverhampton","HMCOURTS-SERVICE.G","75.00","Mental Health Assessment & Care Mgmt","9222","Services - Fees and Charges","19/09/2017"
"Wolverhampton City Council","http://opendatacommunities.org/id/metropolitan-district-council/wolverhampton","CLAIRE","40.00","Landscape","8398","Services - Supplies & Services to users","19/09/2017"
"Wolverhampton City Council","http://opendatacommunities.org/id/metropolitan-district-council/wolverhampton","POST OFFICE COUNTER","6.72","Ground Maintenance Overheads","9402","Comms - Postage","19/09/2017"
"Wolverhampton City Council","http://opendatacommunities.org/id/metropolitan-district-council/wolverhampton","TRAVELODGE","55.21","Adoption and Residence Team & Allowances","3615","Accommodation Costs","19/09/2017"
"Wolverhampton City Council","http://opendatacommunities.org/id/metropolitan-district-council/wolverhampton","Trainline","228.99","Adoption and Residence Team & Allowances","4112","Public Transport","19/09/2017"
"Wolverhampton City Council","http://opendatacommunities.org/id/metropolitan-district-council/wolverhampton","Trainline","66.30","Adoption and Residence Team & Allowances","4112","Public Transport","19/09/2017"
"Wolverhampton City Council","http://opendatacommunities.org/id/metropolitan-district-council/wolverhampton","PC WORLD ONLINE","558.31","Towers Outdoor Education Centre","5732","Equipment - Purchase","19/09/2017"
"Wolverhampton City Council","http://opendatacommunities.org/id/metropolitan-district-council/wolverhampton","WWW.SMARTKIDS2.CO.UK","67.18","EIP Locality 2","8299","Equipment - Purchase","18/09/2017"
"Wolverhampton City Council","http://opendatacommunities.org/id/metropolitan-district-council/wolverhampton","POST OFFICE COUNTER","58.75","LAC Team","9402","Comms - Postage","18/09/2017"
"Wolverhampton City Council","http://opendatacommunities.org/id/metropolitan-district-council/wolverhampton","ASDA HOME SHOPPING","97.55","Ernest Bold Court","5411","Provisions (Not for resale)","18/09/2017"
"Wolverhampton City Council","http://opendatacommunities.org/id/metropolitan-district-council/wolverhampton","Amazon EU","18.77","Children & Family Contact Services","5969","Equipment - Purchase","18/09/2017"
"Wolverhampton City Council","http://opendatacommunities.org/id/metropolitan-district-council/wolverhampton","TFM FARM & COUNTRY SUP","35.25","Northicote Farm","5399","Equipment - Purchase","18/09/2017"
"Wolverhampton City Council","http://opendatacommunities.org/id/metropolitan-district-council/wolverhampton","ASDA HOME SHOPPING","34.53","EIP Locality 5","5411","Grant Payments","18/09/2017"
"Wolverhampton City Council","http://opendatacommunities.org/id/metropolitan-district-council/wolverhampton","Virgin Trains","54.30","Planning","4112","Public Transport","18/09/2017"
"Wolverhampton City Council","http://opendatacommunities.org/id/metropolitan-district-council/wolverhampton","Amazon UK Marketplace","11.57","Employment Programmes","5942","Computing - Consumables","18/09/2017"
"Wolverhampton City Council","http://opendatacommunities.org/id/metropolitan-district-council/wolverhampton","WIX.COM","93.13","Technical Support","5968","Subscriptions","18/09/2017"
"Wolverhampton City Council","http://opendatacommunities.org/id/metropolitan-district-council/wolverhampton","WIX.COM","93.13","Technical Support","5968","Subscriptions","18/09/2017"
"Wolverhampton City Council","http://opendatacommunities.org/id/metropolitan-district-council/wolverhampton","Amazon EU","14.31","Global Budgets","5969","Books","18/09/2017"
"Wolverhampton City Council","http://opendatacommunities.org/id/metropolitan-district-council/wolverhampton","Amazon EU","17.16","Global Budgets","5969","Books","18/09/2017"
"Wolverhampton City Council","http://opendatacommunities.org/id/metropolitan-district-council/wolverhampton","Virgin Trains","168.00","LAC Team","4112","Client Transport","18/09/2017"
"Wolverhampton City Council","http://opendatacommunities.org/id/metropolitan-district-council/wolverhampton","Trainline","130.00","Safeguarding Admin Resource","4112","Public Transport","18/09/2017"
"Wolverhampton City Council","http://opendatacommunities.org/id/metropolitan-district-council/wolverhampton","YMLP.COM","105.00","Audience Development","7372","Marketing \ Non-staff advertising","18/09/2017"
"Wolverhampton City Council","http://opendatacommunities.org/id/metropolitan-district-council/wolverhampton","123 REG R/T","11.99","Visitor Economy - Development","5968","Subscriptions","18/09/2017"
"Wolverhampton City Council","http://opendatacommunities.org/id/metropolitan-district-council/wolverhampton","ASDA HOME SHOPPING","-0.13","Ernest Bold Court","5411","Provisions (Not for resale)","18/09/2017"
"Wolverhampton City Council","http://opendatacommunities.org/id/metropolitan-district-council/wolverhampton","ITUNES.COM/BILL","0.01","Strategic ICTS (ICT Serv Budget)","5735","Computing - Purchase of Software","18/09/2017"
"Wolverhampton City Council","http://opendatacommunities.org/id/metropolitan-district-council/wolverhampton","CORUS HOTEL HYDE PARK","337.50","Corporate Procurement Unit","7011","Services - Supplies & Services to users","18/09/2017"
"Wolverhampton City Council","http://opendatacommunities.org/id/metropolitan-district-council/wolverhampton","WWW.EQUIP4WORK.CO.UK","165.00","Central Costs","5712","Equipment - Purchase","18/09/2017"
"Wolverhampton City Council","http://opendatacommunities.org/id/metropolitan-district-council/wolverhampton","Trainline","31.67","MASH","4112","Public Transport","18/09/2017"
"Wolverhampton City Council","http://opendatacommunities.org/id/metropolitan-district-council/wolverhampton","WWW.COFFEESUPPLIESDIRE","14.20","Archives","5331","Materials for resale","18/09/2017"
"Wolverhampton City Council","http://opendatacommunities.org/id/metropolitan-district-council/wolverhampton","METRO INNS WALSALL","116.00","CIN/CP Social Work Unit - Area 5","7011","Services - Supplies & Services to users","18/09/2017"
"Wolverhampton City Council","http://opendatacommunities.org/id/metropolitan-district-council/wolverhampton","VERIFONE TAXI/PRIVATE","13.20","CIN/CP Social Work Unit - Area 5","4121","Client Transport","18/09/2017"
"Wolverhampton City Council","http://opendatacommunities.org/id/metropolitan-district-council/wolverhampton","VERIFONE TAXI/PRIVATE","19.80","CIN/CP Social Work Unit - Area 5","4121","Client Transport","18/09/2017"
"Wolverhampton City Council","http://opendatacommunities.org/id/metropolitan-district-council/wolverhampton","VERIFONE TAXI/PRIVATE","22.00","CIN/CP Social Work Unit - Area 6","4121","Client Transport","18/09/2017"
"Wolverhampton City Council","http://opendatacommunities.org/id/metropolitan-district-council/wolverhampton","WWW.YELLOW-DOOR.NET","29.99","EIP Locality 2","2741","Equipment - Purchase","18/09/2017"
"Wolverhampton City Council","http://opendatacommunities.org/id/metropolitan-district-council/wolverhampton","WWW.EARLYYEARSRESOURCE","43.07","EIP Locality 2","5999","Equipment - Purchase","18/09/2017"
"Wolverhampton City Council","http://opendatacommunities.org/id/metropolitan-district-council/wolverhampton","BAKER ROSS LTD","12.98","EIP Locality 2","5970","Equipment - Purchase","18/09/2017"
"Wolverhampton City Council","http://opendatacommunities.org/id/metropolitan-district-council/wolverhampton","WILKO.COM","47.00","EIP Locality 8","5722","Grant Payments","18/09/2017"
"Wolverhampton City Council","http://opendatacommunities.org/id/metropolitan-district-council/wolverhampton","LOYD WEDNESFIELD WOLVE","200.00","EIP Locality 8","6011","Grant Payments","18/09/2017"
"Wolverhampton City Council","http://opendatacommunities.org/id/metropolitan-district-council/wolverhampton","WEST COAST TRAINS","13.42","LAC Transitions Team","4112","Client Allowances","18/09/2017"
"Wolverhampton City Council","http://opendatacommunities.org/id/metropolitan-district-council/wolverhampton","POST OFFICE COUNTER","11.42","LAC Transitions Team","9402","Client Allowances","18/09/2017"
"Wolverhampton City Council","http://opendatacommunities.org/id/metropolitan-district-council/wolverhampton","WILKO RETAIL LIMIT","50.97","Service Director City Environment","5722","Events","18/09/2017"
"Wolverhampton City Council","http://opendatacommunities.org/id/metropolitan-district-council/wolverhampton","AMAZON UK RETAIL AMAZO","3.74","Strategic ICTS (ICT Serv Budget)","5999","Equipment - Purchase","18/09/2017"
"Wolverhampton City Council","http://opendatacommunities.org/id/metropolitan-district-council/wolverhampton","PAYPAL  SCREWFIX","15.34","Strategic ICTS (ICT Serv Budget)","5099","Equipment - Purchase","18/09/2017"
"Wolverhampton City Council","http://opendatacommunities.org/id/metropolitan-district-council/wolverhampton","ITUNES.COM/BILL","7.48","Strategic ICTS (ICT Serv Budget)","5735","Computing - Purchase of Software","18/09/2017"
"Wolverhampton City Council","http://opendatacommunities.org/id/metropolitan-district-council/wolverhampton","ITUNES.COM/BILL","7.48","Strategic ICTS (ICT Serv Budget)","5735","Computing - Purchase of Software","18/09/2017"
"Wolverhampton City Council","http://opendatacommunities.org/id/metropolitan-district-council/wolverhampton","ITUNES.COM/BILL","7.48","Strategic ICTS (ICT Serv Budget)","5735","Computing - Purchase of Software","18/09/2017"
"Wolverhampton City Council","http://opendatacommunities.org/id/metropolitan-district-council/wolverhampton","ITUNES.COM/BILL","7.48","Strategic ICTS (ICT Serv Budget)","5735","Computing - Purchase of Software","18/09/2017"
"Wolverhampton City Council","http://opendatacommunities.org/id/metropolitan-district-council/wolverhampton","ITUNES.COM/BILL","12.45","Strategic ICTS (ICT Serv Budget)","5735","Computing - Purchase of Software","18/09/2017"
"Wolverhampton City Council","http://opendatacommunities.org/id/metropolitan-district-council/wolverhampton","N200 Limited","198.00","Quality Assurance & Policies","5699","Equipment - Purchase","18/09/2017"
"Wolverhampton City Council","http://opendatacommunities.org/id/metropolitan-district-council/wolverhampton","AIRBNB   HM2SHH3EZQ","541.35","Quality Assurance & Policies","7011","Services - Supplies & Services to users","18/09/2017"
"Wolverhampton City Council","http://opendatacommunities.org/id/metropolitan-district-council/wolverhampton","ITUNES.COM/BILL","41.50","Headstart - Learning Technologies Team","5735","Computing - Purchase of Software","18/09/2017"
"Wolverhampton City Council","http://opendatacommunities.org/id/metropolitan-district-council/wolverhampton","ITUNES.COM/BILL","41.50","Headstart - Learning Technologies Team","5735","Computing - Purchase of Software","18/09/2017"
"Wolverhampton City Council","http://opendatacommunities.org/id/metropolitan-district-council/wolverhampton","TIMPSON LTD","23.25","Aldersley Leisure Village","7251","Fixtures and Fittings - R&M","18/09/2017"
"Wolverhampton City Council","http://opendatacommunities.org/id/metropolitan-district-council/wolverhampton","BT PAY BY PHONE","244.87","Art Gallery","4814","Comms - Telephone Call charges","15/09/2017"
"Wolverhampton City Council","http://opendatacommunities.org/id/metropolitan-district-council/wolverhampton","BT PAY BY PHONE","142.20","Makers Dozen","4814","Comms - Telephone Call charges","15/09/2017"
"Wolverhampton City Council","http://opendatacommunities.org/id/metropolitan-district-council/wolverhampton","FASTHOSTS INTERNET","13.98","Civic Halls Non Direct Management A/C","4816","Computing - Purchase of Software","15/09/2017"
"Wolverhampton City Council","http://opendatacommunities.org/id/metropolitan-district-council/wolverhampton","VIRGIN MEDIS PYMTS","42.24","Civic Halls Non Direct Management A/C","4814","Comms - Telephone Call charges","15/09/2017"
"Wolverhampton City Council","http://opendatacommunities.org/id/metropolitan-district-council/wolverhampton","EE & T-MOBILE","127.25","Civic Halls Non Direct Management A/C","4814","Comms - Telephone Call charges","15/09/2017"
"Wolverhampton City Council","http://opendatacommunities.org/id/metropolitan-district-council/wolverhampton","Amazon UK Marketplace","9.20","Catering Overhead Account","5942","Equipment - Health and Safety","15/09/2017"
"Wolverhampton City Council","http://opendatacommunities.org/id/metropolitan-district-council/wolverhampton","MARKS&SPENCER PLC SACA","32.50","Mayoral Expenses","5411","Clothing / Uniforms","15/09/2017"
"Wolverhampton City Council","http://opendatacommunities.org/id/metropolitan-district-council/wolverhampton","JMPRIME.CO.UK","23.40","Parks - Ranger Service","5085","Equipment - Purchase","15/09/2017"
"Wolverhampton City Council","http://opendatacommunities.org/id/metropolitan-district-council/wolverhampton","WWW.192.COM LTD","14.99","Adoption and Residence Team & Allowances","7311","Services - Fees and Charges","15/09/2017"
"Wolverhampton City Council","http://opendatacommunities.org/id/metropolitan-district-council/wolverhampton","WELSH CANOE ASSOC","38.50","Towers Outdoor Education Centre","5941","Equipment - Purchase","15/09/2017"
"Wolverhampton City Council","http://opendatacommunities.org/id/metropolitan-district-council/wolverhampton","DECATHLON UK LTD","149.42","Towers Outdoor Education Centre","5941","Equipment - Purchase","15/09/2017"
"Wolverhampton City Council","http://opendatacommunities.org/id/metropolitan-district-council/wolverhampton","FUEL CARD SERVICES LTD","47.49","Towers Outdoor Education Centre","7399","Petrol","15/09/2017"
"Wolverhampton City Council","http://opendatacommunities.org/id/metropolitan-district-council/wolverhampton","Amazon EU","236.69","EIP Locality 8","5969","Books","15/09/2017"
"Wolverhampton City Council","http://opendatacommunities.org/id/metropolitan-district-council/wolverhampton","LOOP11.COM","155.33","City Direct","7372","Computing - Purchase of Software","15/09/2017"
"Wolverhampton City Council","http://opendatacommunities.org/id/metropolitan-district-council/wolverhampton","ITUNES.COM/BILL","2.49","LAC Education Team (LACE)","5735","Computing - Purchase of Software","15/09/2017"
"Wolverhampton City Council","http://opendatacommunities.org/id/metropolitan-district-council/wolverhampton","Amazon EU","38.33","Strategic ICTS (ICT Serv Budget)","5969","Equipment - Purchase","15/09/2017"
"Wolverhampton City Council","http://opendatacommunities.org/id/metropolitan-district-council/wolverhampton","Amazon UK Marketplace","32.10","Strategic ICTS (ICT Serv Budget)","5942","Books","15/09/2017"
"Wolverhampton City Council","http://opendatacommunities.org/id/metropolitan-district-council/wolverhampton","CUMMINGS BROTHERS LOCK","5.00","Caretakers Community Centre","7399","R&M - Departmental planned (external)","15/09/2017"
"Wolverhampton City Council","http://opendatacommunities.org/id/metropolitan-district-council/wolverhampton","CUMMINGS BROTHERS LOCK","4.17","Culwell Street Depot","7399","R&M - Departmental planned (external)","15/09/2017"
"Wolverhampton City Council","http://opendatacommunities.org/id/metropolitan-district-council/wolverhampton","CUMMINGS BROTHERS LOCK","77.03","Caretakers Community Centre","7399","R&M - Departmental planned (external)","15/09/2017"
"Wolverhampton City Council","http://opendatacommunities.org/id/metropolitan-district-council/wolverhampton","MOTHERCARE DIRECT-E-CO","344.95","CIN/CP Social Work Unit - Area 6","5311","Equipment - Purchase","15/09/2017"
"Wolverhampton City Council","http://opendatacommunities.org/id/metropolitan-district-council/wolverhampton","WWW.ARGOS.CO.UK","78.94","CIN/CP Social Work Unit - Area 6","5310","Equipment - Purchase","15/09/2017"
"Wolverhampton City Council","http://opendatacommunities.org/id/metropolitan-district-council/wolverhampton","VERIFONE TAXI/PRIVATE","22.00","CIN/CP Social Work Unit - Area 6","4121","Client Transport","15/09/2017"
"Wolverhampton City Council","http://opendatacommunities.org/id/metropolitan-district-council/wolverhampton","ALDI 94 772        S","19.83","Employment Programmes","5411","Provisions (Not for resale)","15/09/2017"
"Wolverhampton City Council","http://opendatacommunities.org/id/metropolitan-district-council/wolverhampton","Amazon UK Marketplace","8.81","Global Budgets","5942","Books","15/09/2017"
"Wolverhampton City Council","http://opendatacommunities.org/id/metropolitan-district-council/wolverhampton","Trainline","11.17","Service Director Older People","4112","Public Transport","15/09/2017"
"Wolverhampton City Council","http://opendatacommunities.org/id/metropolitan-district-council/wolverhampton","Virgin Trains","194.30","Environmental Health - Pub Prot - Gen","4112","Services - Fees and Charges","15/09/2017"
"Wolverhampton City Council","http://opendatacommunities.org/id/metropolitan-district-council/wolverhampton","Amazon EU","39.99","Environmental Health - Pub Prot - Gen","5969","Equipment - Purchase","15/09/2017"
"Wolverhampton City Council","http://opendatacommunities.org/id/metropolitan-district-council/wolverhampton","Amazon EU","13.32","Environmental Health - Pub Prot - Gen","5969","Equipment - Purchase","15/09/2017"
"Wolverhampton City Council","http://opendatacommunities.org/id/metropolitan-district-council/wolverhampton","WWW.ARGOS.CO.UK","13.94","CIN/CP Social Work Unit - Area 6","5310","Grant Payments","15/09/2017"
"Wolverhampton City Council","http://opendatacommunities.org/id/metropolitan-district-council/wolverhampton","WWW.ARGOS.CO.UK","89.99","CIN/CP Social Work Unit - Area 6","5310","Grant Payments","15/09/2017"
"Wolverhampton City Council","http://opendatacommunities.org/id/metropolitan-district-council/wolverhampton","TOOLED UP COM","36.95","Planning","5251","Protective Clothing","15/09/2017"
"Wolverhampton City Council","http://opendatacommunities.org/id/metropolitan-district-council/wolverhampton","Virgin Trains","45.30","Planning","4112","Public Transport","15/09/2017"
"Wolverhampton City Council","http://opendatacommunities.org/id/metropolitan-district-council/wolverhampton","BLOXWICH  SST","2.60","Economic Development","4112","Public Transport","15/09/2017"
"Wolverhampton City Council","http://opendatacommunities.org/id/metropolitan-district-council/wolverhampton","Amazon UK Marketplace","127.17","Headstart - Learning Technologies Team","5942","Computing - Purchase of Hardware","15/09/2017"
"Wolverhampton City Council","http://opendatacommunities.org/id/metropolitan-district-council/wolverhampton","Trainline","113.42","Hospital Team","4112","Public Transport","15/09/2017"
"Wolverhampton City Council","http://opendatacommunities.org/id/metropolitan-district-council/wolverhampton","Trainline","132.68","Mental Health Assessment & Care Mgmt","4112","Public Transport","15/09/2017"
"Wolverhampton City Council","http://opendatacommunities.org/id/metropolitan-district-council/wolverhampton","SOUTHAMPTON CC PARKING","36.00","Managing Director","7523","Car Allowances","15/09/2017"
"Wolverhampton City Council","http://opendatacommunities.org/id/metropolitan-district-council/wolverhampton","Virgin Trains","126.30","LAC Team","4112","Public Transport","15/09/2017"
"Wolverhampton City Council","http://opendatacommunities.org/id/metropolitan-district-council/wolverhampton","CARLTON HOTELS","333.33","Adoption and Residence Team & Allowances","3716","Services - Supplies & Services to users","15/09/2017"
"Wolverhampton City Council","http://opendatacommunities.org/id/metropolitan-district-council/wolverhampton","ASDA SUPERSTORE","21.47","Upper Pendeford Farm Childrens Home","5411","Provisions (Not for resale)","15/09/2017"
"Wolverhampton City Council","http://opendatacommunities.org/id/metropolitan-district-council/wolverhampton","Trainline","105.11","Travelwise","4112","Events","15/09/2017"
"Wolverhampton City Council","http://opendatacommunities.org/id/metropolitan-district-council/wolverhampton","LIDDELL ELECTRICAL DIS","28.50","Strategy & Development","5065","Equipment - Purchase","15/09/2017"
"Wolverhampton City Council","http://opendatacommunities.org/id/metropolitan-district-council/wolverhampton","CUMMINGS BROTHERS LOCK","3.33","Caretakers Community Centre","7399","R&M - Departmental planned (external)","15/09/2017"
"Wolverhampton City Council","http://opendatacommunities.org/id/metropolitan-district-council/wolverhampton","WORLD NOMADS TRAVEL","128.68","Leonardo Da Vinci Project","6300","Services - Supplies & Services to users","14/09/2017"
"Wolverhampton City Council","http://opendatacommunities.org/id/metropolitan-district-council/wolverhampton","WORLD NOMADS TRAVEL","131.68","Leonardo Da Vinci Project","6300","Services - Supplies & Services to users","14/09/2017"
"Wolverhampton City Council","http://opendatacommunities.org/id/metropolitan-district-council/wolverhampton","WORLD NOMADS TRAVEL","131.68","Leonardo Da Vinci Project","6300","Services - Supplies & Services to users","14/09/2017"
"Wolverhampton City Council","http://opendatacommunities.org/id/metropolitan-district-council/wolverhampton","FACEBK Q99NKCNC22","100.00","Admin & Support","7311","Marketing \ Non-staff advertising","14/09/2017"
"Wolverhampton City Council","http://opendatacommunities.org/id/metropolitan-district-council/wolverhampton","Amazon EU","16.61","EIP Locality 8","5969","Books","14/09/2017"
"Wolverhampton City Council","http://opendatacommunities.org/id/metropolitan-district-council/wolverhampton","NAMESCO","21.99","Mayoral Expenses","4816","Computing - Purchase of Software","14/09/2017"
"Wolverhampton City Council","http://opendatacommunities.org/id/metropolitan-district-council/wolverhampton","ROYAL CARPETS","125.00","LAC Transitions Team","5713","Client Allowances","14/09/2017"
"Wolverhampton City Council","http://opendatacommunities.org/id/metropolitan-district-council/wolverhampton","LIDL UK","3.33","EIP Locality 5","5411","Provisions (Not for resale)","14/09/2017"
"Wolverhampton City Council","http://opendatacommunities.org/id/metropolitan-district-council/wolverhampton","MARKS&SPENCER PLC","136.80","Delivery & OCE Development","5411","Provisions (Not for resale)","14/09/2017"
"Wolverhampton City Council","http://opendatacommunities.org/id/metropolitan-district-council/wolverhampton","MEDIA & COMMUNICATIONS","149.50","Delivery & OCE Development","4812","Comms - Mobile Telephones","14/09/2017"
"Wolverhampton City Council","http://opendatacommunities.org/id/metropolitan-district-council/wolverhampton","Virgin Trains","295.00","Planning","4112","Public Transport","14/09/2017"
"Wolverhampton City Council","http://opendatacommunities.org/id/metropolitan-district-council/wolverhampton","HIGHFIELD HOUSE HO","385.00","CIN/CP Social Work Unit - Area 3","7011","Accommodation Costs","14/09/2017"
"Wolverhampton City Council","http://opendatacommunities.org/id/metropolitan-district-council/wolverhampton","Virgin Trains","50.50","Information Governance Team","4112","Public Transport","14/09/2017"
"Wolverhampton City Council","http://opendatacommunities.org/id/metropolitan-district-council/wolverhampton","Amazon UK Marketplace","40.83","Headstart - Learning Technologies Team","5942","Computing - Purchase of Hardware","14/09/2017"
"Wolverhampton City Council","http://opendatacommunities.org/id/metropolitan-district-council/wolverhampton","Trainline","135.15","Hospital Team","4112","Public Transport","14/09/2017"
"Wolverhampton City Council","http://opendatacommunities.org/id/metropolitan-district-council/wolverhampton","Trainline","135.15","Adult Services - East","4112","Public Transport","14/09/2017"
"Wolverhampton City Council","http://opendatacommunities.org/id/metropolitan-district-council/wolverhampton","Trainline","135.15","Adult Services - East","4112","Public Transport","14/09/2017"
"Wolverhampton City Council","http://opendatacommunities.org/id/metropolitan-district-council/wolverhampton","HAMPSHIREFL","136.39","Communications & Marketing - General","5949","Materials","14/09/2017"
"Wolverhampton City Council","http://opendatacommunities.org/id/metropolitan-district-council/wolverhampton","HAMPSHIREFL","136.39","Communications & Marketing - General","5949","Materials","14/09/2017"
"Wolverhampton City Council","http://opendatacommunities.org/id/metropolitan-district-council/wolverhampton","HILL AND CARTER LEISUR","33.75","Adoption and Residence Team & Allowances","7011","Services - Fees and Charges","14/09/2017"
"Wolverhampton City Council","http://opendatacommunities.org/id/metropolitan-district-council/wolverhampton","AMAZON.CO.UK","46.99","Strategic ICTS (ICT Serv Budget)","5942","Computing - Purchase of Hardware","14/09/2017"
"Wolverhampton City Council","http://opendatacommunities.org/id/metropolitan-district-council/wolverhampton","Amazon EU","119.00","Strategic ICTS (ICT Serv Budget)","5969","Equipment - Purchase","14/09/2017"
"Wolverhampton City Council","http://opendatacommunities.org/id/metropolitan-district-council/wolverhampton","Amazon UK Marketplace","10.80","Strategic ICTS (ICT Serv Budget)","5942","Books","14/09/2017"
"Wolverhampton City Council","http://opendatacommunities.org/id/metropolitan-district-council/wolverhampton","CROWN PROPERTY SERVICE","280.00","CIN/CP Social Work Unit - Area 3","7011","Accommodation Costs","14/09/2017"
"Wolverhampton City Council","http://opendatacommunities.org/id/metropolitan-district-council/wolverhampton","SCREWFIX DIRECT LT","101.31","Central Costs","5211","Materials","14/09/2017"
"Wolverhampton City Council","http://opendatacommunities.org/id/metropolitan-district-council/wolverhampton","NOVOTEL WOLVERHAMPTON","79.00","Director of Education","7011","Services - Supplies & Services to users","14/09/2017"
"Wolverhampton City Council","http://opendatacommunities.org/id/metropolitan-district-council/wolverhampton","WWW.TELECARE.ORG.UK","80.34","Telecare","7399","Conference Expenses","14/09/2017"
"Wolverhampton City Council","http://opendatacommunities.org/id/metropolitan-district-council/wolverhampton","lastminute com   Hotel","75.60","Telecare","4722","Conference Expenses","14/09/2017"
"Wolverhampton City Council","http://opendatacommunities.org/id/metropolitan-district-council/wolverhampton","WWW.ARGOS.CO.UK","130.42","CIN/CP Social Work Unit - Area 2","5310","Section 17","14/09/2017"
"Wolverhampton City Council","http://opendatacommunities.org/id/metropolitan-district-council/wolverhampton","E00783400000000","50.00","EIP Locality 1","6011","Grant Payments","14/09/2017"
"Wolverhampton City Council","http://opendatacommunities.org/id/metropolitan-district-council/wolverhampton","NATURAL HIST. MUSEUM","277.20","Wildlife Photographer of The Year","5970","Materials for resale","14/09/2017"
"Wolverhampton City Council","http://opendatacommunities.org/id/metropolitan-district-council/wolverhampton","AMAZON UK RETAIL AMAZO","13.45","SEN Sensory Inclusion","5999","Equipment - Purchase","14/09/2017"
"Wolverhampton City Council","http://opendatacommunities.org/id/metropolitan-district-council/wolverhampton","Virgin Trains","7.60","Children & Young People Support Costs","4112","Public Transport","14/09/2017"
"Wolverhampton City Council","http://opendatacommunities.org/id/metropolitan-district-council/wolverhampton","PAYPAL  BANANAPRINT","14.08","Technical Support","8931","Services - Professional Fees","14/09/2017"
"Wolverhampton City Council","http://opendatacommunities.org/id/metropolitan-district-council/wolverhampton","DISPLAY STANDS LTD","134.40","Civic Centre Catering","8999","Services - Professional Fees","14/09/2017"
"Wolverhampton City Council","http://opendatacommunities.org/id/metropolitan-district-council/wolverhampton","DISPLAY STANDS LTD","134.40","Civic Centre Catering","8999","Services - Professional Fees","14/09/2017"
"Wolverhampton City Council","http://opendatacommunities.org/id/metropolitan-district-council/wolverhampton","DISPLAY STANDS LTD","134.40","Civic Centre Catering","8999","Services - Professional Fees","14/09/2017"
"Wolverhampton City Council","http://opendatacommunities.org/id/metropolitan-district-council/wolverhampton","REGISTRARS OFFICE","31.00","CIN/CP Social Work Unit - Area 7","8299","Section 17","14/09/2017"
"Wolverhampton City Council","http://opendatacommunities.org/id/metropolitan-district-council/wolverhampton","PAPYRUS (UK)","165.00","Central Training","8398","Training Expenses","14/09/2017"
"Wolverhampton City Council","http://opendatacommunities.org/id/metropolitan-district-council/wolverhampton","PAYPAL  COM-ED","279.71","Central Training","8211","Training Expenses","14/09/2017"
"Wolverhampton City Council","http://opendatacommunities.org/id/metropolitan-district-council/wolverhampton","TESCO PFS 2185","2.00","Mayoral Expenses","5541","Hospitality","14/09/2017"
"Wolverhampton City Council","http://opendatacommunities.org/id/metropolitan-district-council/wolverhampton","Amazon EU","14.65","Technical Material","5969","Materials","14/09/2017"
"Wolverhampton City Council","http://opendatacommunities.org/id/metropolitan-district-council/wolverhampton","HAMPSHIREFL","136.39","Communications & Marketing - General","5949","Materials","14/09/2017"
"Wolverhampton City Council","http://opendatacommunities.org/id/metropolitan-district-council/wolverhampton","NOTEMACHINE","100.00","Childrens with Disabilities Team","6011","No Recourse to Public Funds","14/09/2017"
"Wolverhampton City Council","http://opendatacommunities.org/id/metropolitan-district-council/wolverhampton","NOTEMACHINE","250.00","Childrens with Disabilities Team","6011","No Recourse to Public Funds","14/09/2017"
"Wolverhampton City Council","http://opendatacommunities.org/id/metropolitan-district-council/wolverhampton","WORLD NOMADS TRAVEL","118.93","Leonardo Da Vinci Project","6300","Services - Supplies & Services to users","14/09/2017"
"Wolverhampton City Council","http://opendatacommunities.org/id/metropolitan-district-council/wolverhampton","WORLD NOMADS TRAVEL","118.93","Leonardo Da Vinci Project","6300","Services - Supplies & Services to users","14/09/2017"
"Wolverhampton City Council","http://opendatacommunities.org/id/metropolitan-district-council/wolverhampton","WWW.192.COM LTD","14.95","Adoption and Residence Team & Allowances","7311","Services - Fees and Charges","14/09/2017"
"Wolverhampton City Council","http://opendatacommunities.org/id/metropolitan-district-council/wolverhampton","CARVER/WOLVERHAMPTON/L","8.95","Technical Material","5211","Materials","13/09/2017"
"Wolverhampton City Council","http://opendatacommunities.org/id/metropolitan-district-council/wolverhampton","ECU TESTING LTD","54.00","Fleet Management","5533","Equipment - Purchase","13/09/2017"
"Wolverhampton City Council","http://opendatacommunities.org/id/metropolitan-district-council/wolverhampton","INTERTRADE ENGINEERING","137.09","Fleet Management","5533","Equipment - Purchase","13/09/2017"
"Wolverhampton City Council","http://opendatacommunities.org/id/metropolitan-district-council/wolverhampton","TESCO STORES 5194","-8.75","Towers Outdoor Education Centre","5411","Provisions (Not for resale)","13/09/2017"
"Wolverhampton City Council","http://opendatacommunities.org/id/metropolitan-district-council/wolverhampton","TESCO STORES 5194","235.40","Towers Outdoor Education Centre","5411","Provisions (Not for resale)","13/09/2017"
"Wolverhampton City Council","http://opendatacommunities.org/id/metropolitan-district-council/wolverhampton","BETTWS MOTORS LIMITED","54.85","Towers Outdoor Education Centre","7538","Vehicle Maintenance - Repairs","13/09/2017"
"Wolverhampton City Council","http://opendatacommunities.org/id/metropolitan-district-council/wolverhampton","SPAR SIOP TANDDERWEN","195.15","Towers Outdoor Education Centre","5411","Provisions (Not for resale)","13/09/2017"
"Wolverhampton City Council","http://opendatacommunities.org/id/metropolitan-district-council/wolverhampton","BLOXWICH  SST","7.00","Economic Development","4112","Public Transport","13/09/2017"
"Wolverhampton City Council","http://opendatacommunities.org/id/metropolitan-district-council/wolverhampton","POST OFFICE COUNTER","186.00","Fostering Team & Allowances","9402","Comms - Postage","13/09/2017"
"Wolverhampton City Council","http://opendatacommunities.org/id/metropolitan-district-council/wolverhampton","FACEBK 7TBL4EJAR2","7.23","Communications & Marketing - General","7311","Marketing \ Non-staff advertising","13/09/2017"
"Wolverhampton City Council","http://opendatacommunities.org/id/metropolitan-district-council/wolverhampton","FACEBK 6TBL4EJAR2","492.80","Communications & Marketing - General","7311","Marketing \ Non-staff advertising","13/09/2017"
"Wolverhampton City Council","http://opendatacommunities.org/id/metropolitan-district-council/wolverhampton","WEST MID TRAVEL","500.00","IMPACT","4131","Public Transport","13/09/2017"
"Wolverhampton City Council","http://opendatacommunities.org/id/metropolitan-district-council/wolverhampton","WEST MID TRAVEL","500.00","IMPACT","4131","Public Transport","13/09/2017"
"Wolverhampton City Council","http://opendatacommunities.org/id/metropolitan-district-council/wolverhampton","WEST MID TRAVEL","84.10","IMPACT","4131","Public Transport","13/09/2017"
"Wolverhampton City Council","http://opendatacommunities.org/id/metropolitan-district-council/wolverhampton","GUVYS NEWSAGENTS","10.50","EIP Locality 5","5921","Grant Payments","13/09/2017"
"Wolverhampton City Council","http://opendatacommunities.org/id/metropolitan-district-council/wolverhampton","W'HAMPTON  CARPET","191.67","LAC Transitions Team","5713","Client Allowances","13/09/2017"
"Wolverhampton City Council","http://opendatacommunities.org/id/metropolitan-district-council/wolverhampton","B & Q 1243","6.67","LAC Transitions Team","5211","Client Allowances","13/09/2017"
"Wolverhampton City Council","http://opendatacommunities.org/id/metropolitan-district-council/wolverhampton","HOLIDAY INN EXPRES","96.00","Adoption and Residence Team & Allowances","7011","Services - Supplies & Services to users","13/09/2017"
"Wolverhampton City Council","http://opendatacommunities.org/id/metropolitan-district-council/wolverhampton","WEST COAST TRAINS","182.00","Strategic ICTS (ICT Serv Budget)","4112","Public Transport","13/09/2017"
"Wolverhampton City Council","http://opendatacommunities.org/id/metropolitan-district-council/wolverhampton","AMAZON.CO.UK","7.99","Strategic ICTS (ICT Serv Budget)","5942","Equipment - Purchase","13/09/2017"
"Wolverhampton City Council","http://opendatacommunities.org/id/metropolitan-district-council/wolverhampton","WWW.PROVISIO.COM","1776.00","Strategic ICTS (ICT Serv Budget)","5734","Computing - Purchase of Software","13/09/2017"
"Wolverhampton City Council","http://opendatacommunities.org/id/metropolitan-district-council/wolverhampton","Amazon EU","45.93","Strategic ICTS (ICT Serv Budget)","5969","Equipment - Purchase","13/09/2017"
"Wolverhampton City Council","http://opendatacommunities.org/id/metropolitan-district-council/wolverhampton","Amazon EU","19.17","Strategic ICTS (ICT Serv Budget)","5969","Equipment - Purchase","13/09/2017"
"Wolverhampton City Council","http://opendatacommunities.org/id/metropolitan-district-council/wolverhampton","Amazon UK Marketplace","47.14","Strategic ICTS (ICT Serv Budget)","5942","Computing - Purchase of Hardware","13/09/2017"
"Wolverhampton City Council","http://opendatacommunities.org/id/metropolitan-district-council/wolverhampton","Virgin Trains","36.00","Public Service Reform","4112","Public Transport","13/09/2017"
"Wolverhampton City Council","http://opendatacommunities.org/id/metropolitan-district-council/wolverhampton","Virgin Trains","119.05","LAC Team","4112","Public Transport","13/09/2017"
"Wolverhampton City Council","http://opendatacommunities.org/id/metropolitan-district-council/wolverhampton","ROYAL CARPETS","333.33","LAC Transitions Team","5713","Client Allowances","13/09/2017"
"Wolverhampton City Council","http://opendatacommunities.org/id/metropolitan-district-council/wolverhampton","ROYAL CARPETS","300.00","LAC Transitions Team","5713","Client Allowances","13/09/2017"
"Wolverhampton City Council","http://opendatacommunities.org/id/metropolitan-district-council/wolverhampton","Amazon Prime","-7.99","Private Sector Housing","5968","Subscriptions","13/09/2017"
"Wolverhampton City Council","http://opendatacommunities.org/id/metropolitan-district-council/wolverhampton","Amazon Prime","-7.99","Private Sector Housing","5968","Subscriptions","13/09/2017"
"Wolverhampton City Council","http://opendatacommunities.org/id/metropolitan-district-council/wolverhampton","Virgin Trains","108.90","Condition Surveys","4112","Public Transport","13/09/2017"
"Wolverhampton City Council","http://opendatacommunities.org/id/metropolitan-district-council/wolverhampton","THE POST OFFICE","8.55","Pop Gallery Space","9402","Comms - Postage","13/09/2017"
"Wolverhampton City Council","http://opendatacommunities.org/id/metropolitan-district-council/wolverhampton","THE POST OFFICE","111.50","LAC Team","9402","Financial Assistance In Exceptional Circ","13/09/2017"
"Wolverhampton City Council","http://opendatacommunities.org/id/metropolitan-district-council/wolverhampton","ASDA SUPERSTORE","67.50","LAC Transitions Team","5411","Client Allowances","13/09/2017"
"Wolverhampton City Council","http://opendatacommunities.org/id/metropolitan-district-council/wolverhampton","WOLVERHAMPTON CITY COU","21.00","The Little Civic","9399","Services - General Licences","13/09/2017"
"Wolverhampton City Council","http://opendatacommunities.org/id/metropolitan-district-council/wolverhampton","CIEH","352.00","Central Training","8699","Training Expenses","13/09/2017"
"Wolverhampton City Council","http://opendatacommunities.org/id/metropolitan-district-council/wolverhampton","WWW.CILEX LAW SC.AC.UK","50.00","Central Training","8244","Training Expenses","13/09/2017"
"Wolverhampton City Council","http://opendatacommunities.org/id/metropolitan-district-council/wolverhampton","Virgin Trains","60.00","Mental Health Assessment & Care Mgmt","4112","Public Transport","13/09/2017"
"Wolverhampton City Council","http://opendatacommunities.org/id/metropolitan-district-council/wolverhampton","Amazon EU","215.78","School Improvement","5969","Equipment - Purchase","13/09/2017"
"Wolverhampton City Council","http://opendatacommunities.org/id/metropolitan-district-council/wolverhampton","TESCO DELIVERY SAVER1","3.50","Towers Outdoor Education Centre","5411","Provisions (Not for resale)","12/09/2017"
"Wolverhampton City Council","http://opendatacommunities.org/id/metropolitan-district-council/wolverhampton","Virgin Trains","17.10","Members Expenses","4112","Public Transport","12/09/2017"
"Wolverhampton City Council","http://opendatacommunities.org/id/metropolitan-district-council/wolverhampton","Virgin Trains","262.60","Scrutiny & Transparency","4112","Public Transport","12/09/2017"
"Wolverhampton City Council","http://opendatacommunities.org/id/metropolitan-district-council/wolverhampton","Amazon UK Marketplace","65.30","Headstart - Learning Technologies Team","5942","Computing - Purchase of Hardware","12/09/2017"
"Wolverhampton City Council","http://opendatacommunities.org/id/metropolitan-district-council/wolverhampton","Amazon UK Marketplace","35.38","Headstart - Learning Technologies Team","5942","Computing - Purchase of Hardware","12/09/2017"
"Wolverhampton City Council","http://opendatacommunities.org/id/metropolitan-district-council/wolverhampton","TRAININGINELECTRIC","1662.50","IMPACT","8220","Training Expenses","12/09/2017"
"Wolverhampton City Council","http://opendatacommunities.org/id/metropolitan-district-council/wolverhampton","WOLVERHAMPTON CC","5.42","IMPACT","7523","Car Allowances","12/09/2017"
"Wolverhampton City Council","http://opendatacommunities.org/id/metropolitan-district-council/wolverhampton","ASDA HOME SHOPPING","-2.00","EIP Locality 4","5411","Grant Payments","12/09/2017"
"Wolverhampton City Council","http://opendatacommunities.org/id/metropolitan-district-council/wolverhampton","ASDA HOME SHOPPING","69.17","EIP Locality 4","5411","Grant Payments","12/09/2017"
"Wolverhampton City Council","http://opendatacommunities.org/id/metropolitan-district-council/wolverhampton","AMAZON.CO.UK","37.42","Strategic ICTS (ICT Serv Budget)","5942","Computing - Purchase of Hardware","12/09/2017"
"Wolverhampton City Council","http://opendatacommunities.org/id/metropolitan-district-council/wolverhampton","Virgin Trains","84.00","Strategic Asset Management - General","4112","Public Transport","12/09/2017"
"Wolverhampton City Council","http://opendatacommunities.org/id/metropolitan-district-council/wolverhampton","LIDDELL ELECTRICAL DIS","33.20","Culwell Street Depot","5065","R&M - Departmental planned (external)","12/09/2017"
"Wolverhampton City Council","http://opendatacommunities.org/id/metropolitan-district-council/wolverhampton","TRAINLINE","-191.60","CIN/CP Social Work Unit - Area 8","4112","Public Transport","12/09/2017"
"Wolverhampton City Council","http://opendatacommunities.org/id/metropolitan-district-council/wolverhampton","HOO HOOTSUITE MEDIA I","83.88","Learning Technologies","5968","Subscriptions","12/09/2017"
"Wolverhampton City Council","http://opendatacommunities.org/id/metropolitan-district-council/wolverhampton","BRTMKT DBA FastSpring","5.05","Technical Support","5818","Subscriptions","12/09/2017"
"Wolverhampton City Council","http://opendatacommunities.org/id/metropolitan-district-council/wolverhampton","Wix.com","93.13","Technical Support","5817","Computing - Purchase of Software","12/09/2017"
"Wolverhampton City Council","http://opendatacommunities.org/id/metropolitan-district-council/wolverhampton","AMZ Wordery","-14.68","Global Budgets","5999","Books","12/09/2017"
"Wolverhampton City Council","http://opendatacommunities.org/id/metropolitan-district-council/wolverhampton","ASDA HOME SHOPPING","96.71","Ernest Bold Court","5411","Provisions (Not for resale)","12/09/2017"
"Wolverhampton City Council","http://opendatacommunities.org/id/metropolitan-district-council/wolverhampton","REDWINGS LODGE","59.95","CIN/CP Social Work Unit - Area 7","7011","Section 17","12/09/2017"
"Wolverhampton City Council","http://opendatacommunities.org/id/metropolitan-district-council/wolverhampton","Amazon UK Marketplace","45.79","Welfare Rights","5942","Equipment - Purchase","12/09/2017"
"Wolverhampton City Council","http://opendatacommunities.org/id/metropolitan-district-council/wolverhampton","Virgin Trains","53.05","Mental Health Assessment & Care Mgmt","4112","Public Transport","12/09/2017"
"Wolverhampton City Council","http://opendatacommunities.org/id/metropolitan-district-council/wolverhampton","CURRYS ONLINE","99.99","Towers Outdoor Education Centre","5732","Fixtures and Fittings - Purchases","12/09/2017"
"Wolverhampton City Council","http://opendatacommunities.org/id/metropolitan-district-council/wolverhampton","Amazon UK Marketplace","15.82","Strategic ICTS (ICT Serv Budget)","5942","Computing - Purchase of Hardware","12/09/2017"
"Wolverhampton City Council","http://opendatacommunities.org/id/metropolitan-district-council/wolverhampton","Amazon UK Marketplace","44.35","Strategic ICTS (ICT Serv Budget)","5942","Books","12/09/2017"
"Wolverhampton City Council","http://opendatacommunities.org/id/metropolitan-district-council/wolverhampton","Amazon UK Marketplace","9.97","Strategic ICTS (ICT Serv Budget)","5942","Books","12/09/2017"
"Wolverhampton City Council","http://opendatacommunities.org/id/metropolitan-district-council/wolverhampton","SCREWFIX DIRECT","174.95","Central Baths","5211","Materials","12/09/2017"
"Wolverhampton City Council","http://opendatacommunities.org/id/metropolitan-district-council/wolverhampton","CONCENTRIC LETTINGS LT","262.65","CIN/CP Social Work Unit - Area 3","8999","No Recourse to Public Funds","12/09/2017"
"Wolverhampton City Council","http://opendatacommunities.org/id/metropolitan-district-council/wolverhampton","E01510300000000","100.00","Emergency Duty Team","6011","Financial Assistance In Exceptional Circ","12/09/2017"
"Wolverhampton City Council","http://opendatacommunities.org/id/metropolitan-district-council/wolverhampton","CO-OP GROUP 070362","9.90","Upper Pendeford Farm Childrens Home","5411","Provisions (Not for resale)","12/09/2017"
"Wolverhampton City Council","http://opendatacommunities.org/id/metropolitan-district-council/wolverhampton","ASDA SUPERSTORE","175.79","Upper Pendeford Farm Childrens Home","5411","Provisions (Not for resale)","12/09/2017"
"Wolverhampton City Council","http://opendatacommunities.org/id/metropolitan-district-council/wolverhampton","AMAZON.CO.UK","113.98","Central Costs","5942","Equipment - Purchase","12/09/2017"
"Wolverhampton City Council","http://opendatacommunities.org/id/metropolitan-district-council/wolverhampton","Amazon UK Marketplace","212.07","Headstart Phase 3","5942","Equipment - Purchase","12/09/2017"
"Wolverhampton City Council","http://opendatacommunities.org/id/metropolitan-district-council/wolverhampton","Amazon UK Marketplace","43.25","Headstart Phase 3","5942","Equipment - Purchase","12/09/2017"
"Wolverhampton City Council","http://opendatacommunities.org/id/metropolitan-district-council/wolverhampton","Amazon UK Marketplace","272.50","Headstart Phase 3","5942","Equipment - Purchase","12/09/2017"
"Wolverhampton City Council","http://opendatacommunities.org/id/metropolitan-district-council/wolverhampton","BRITANNIA WOLVERHA","37.50","CIN/CP Social Work Unit - Area 5","7011","Section 17","11/09/2017"
"Wolverhampton City Council","http://opendatacommunities.org/id/metropolitan-district-council/wolverhampton","CUMMINGS BROTHERS LOCK","15.00","Global Budgets","7399","Equipment - Purchase","11/09/2017"
"Wolverhampton City Council","http://opendatacommunities.org/id/metropolitan-district-council/wolverhampton","ARGOS LTD","33.32","LAC Transitions Team","5310","Client Allowances","11/09/2017"
"Wolverhampton City Council","http://opendatacommunities.org/id/metropolitan-district-council/wolverhampton","SUITES AND BEDS","158.33","LAC Transitions Team","5712","Client Allowances","11/09/2017"
"Wolverhampton City Council","http://opendatacommunities.org/id/metropolitan-district-council/wolverhampton","SUITES AND BEDS","416.67","LAC Transitions Team","5712","Client Allowances","11/09/2017"
"Wolverhampton City Council","http://opendatacommunities.org/id/metropolitan-district-council/wolverhampton","SUITES AND BEDS","33.33","LAC Transitions Team","5712","Client Allowances","11/09/2017"
"Wolverhampton City Council","http://opendatacommunities.org/id/metropolitan-district-council/wolverhampton","EDF ENERGY-DOM","401.27","CIN/CP Social Work Unit - Area 4","4900","Electricity","11/09/2017"
"Wolverhampton City Council","http://opendatacommunities.org/id/metropolitan-district-council/wolverhampton","EDF ENERGY-DOM","500.00","CIN/CP Social Work Unit - Area 4","4900","Electricity","11/09/2017"
"Wolverhampton City Council","http://opendatacommunities.org/id/metropolitan-district-council/wolverhampton","XMA LTD","582.16","Electoral Registration","7372","Computing - Purchase of Software","11/09/2017"
"Wolverhampton City Council","http://opendatacommunities.org/id/metropolitan-district-council/wolverhampton","ICELAND","17.54","Children & Family Contact Services","5411","Provisions (Not for resale)","11/09/2017"
"Wolverhampton City Council","http://opendatacommunities.org/id/metropolitan-district-council/wolverhampton","WWW.MPDHOOKANDLOOP.COM","54.95","Technical Material","7399","Materials","11/09/2017"
"Wolverhampton City Council","http://opendatacommunities.org/id/metropolitan-district-council/wolverhampton","Trainline","130.05","CIN/CP Social Work Unit - Area 8","4112","Public Transport","11/09/2017"
"Wolverhampton City Council","http://opendatacommunities.org/id/metropolitan-district-council/wolverhampton","Amazon UK Marketplace","65.63","Headstart Phase 3","5942","Equipment - Purchase","11/09/2017"
"Wolverhampton City Council","http://opendatacommunities.org/id/metropolitan-district-council/wolverhampton","Amazon UK Marketplace","65.62","Headstart Phase 3","5942","Equipment - Purchase","11/09/2017"
"Wolverhampton City Council","http://opendatacommunities.org/id/metropolitan-district-council/wolverhampton","Amazon UK Marketplace","65.63","Headstart Phase 3","5942","Equipment - Purchase","11/09/2017"
"Wolverhampton City Council","http://opendatacommunities.org/id/metropolitan-district-council/wolverhampton","Amazon UK Marketplace","164.07","Headstart Phase 3","5942","Equipment - Purchase","11/09/2017"
"Wolverhampton City Council","http://opendatacommunities.org/id/metropolitan-district-council/wolverhampton","Amazon UK Marketplace","398.24","Headstart Phase 3","5942","Equipment - Purchase","11/09/2017"
"Wolverhampton City Council","http://opendatacommunities.org/id/metropolitan-district-council/wolverhampton","Amazon UK Marketplace","65.63","Headstart Phase 3","5942","Equipment - Purchase","11/09/2017"
"Wolverhampton City Council","http://opendatacommunities.org/id/metropolitan-district-council/wolverhampton","AMAZON.CO.UK","256.67","Headstart Phase 3","5942","Equipment - Purchase","11/09/2017"
"Wolverhampton City Council","http://opendatacommunities.org/id/metropolitan-district-council/wolverhampton","Amazon EU","33.97","Headstart Phase 3","5969","Equipment - Purchase","11/09/2017"
"Wolverhampton City Council","http://opendatacommunities.org/id/metropolitan-district-council/wolverhampton","Amazon UK Marketplace","119.98","Headstart Phase 3","5942","Equipment - Purchase","11/09/2017"
"Wolverhampton City Council","http://opendatacommunities.org/id/metropolitan-district-council/wolverhampton","HOMEBASE LTD 103","37.84","Wolverhampton Indoor and Open Market","5211","Materials","11/09/2017"
"Wolverhampton City Council","http://opendatacommunities.org/id/metropolitan-district-council/wolverhampton","PREMIER INN","222.48","Bridges & Subways","3811","TPP - Maintenance on Principal Roads","11/09/2017"
"Wolverhampton City Council","http://opendatacommunities.org/id/metropolitan-district-council/wolverhampton","PREMIER INN","162.50","Hostels / Outreach","3811","Services - Supplies & Services to users","11/09/2017"
"Wolverhampton City Council","http://opendatacommunities.org/id/metropolitan-district-council/wolverhampton","Amazon UK Marketplace","2.21","Private Sector Housing","5942","Equipment - Purchase","11/09/2017"
"Wolverhampton City Council","http://opendatacommunities.org/id/metropolitan-district-council/wolverhampton","ASDA SUPERSTORE","17.00","EIP Locality 1","5411","Grant Payments","11/09/2017"
"Wolverhampton City Council","http://opendatacommunities.org/id/metropolitan-district-council/wolverhampton","ASDA STORES 4452","33.54","EIP Locality 1","5411","Provisions (Not for resale)","11/09/2017"
"Wolverhampton City Council","http://opendatacommunities.org/id/metropolitan-district-council/wolverhampton","BOOKWHEN","9.00","Craftplay","7372","Computing - Purchase of Software","11/09/2017"
"Wolverhampton City Council","http://opendatacommunities.org/id/metropolitan-district-council/wolverhampton","PAYPAL  123REGLIMIT","19.98","Technical Support","4816","Computing - Purchase of Software","11/09/2017"
"Wolverhampton City Council","http://opendatacommunities.org/id/metropolitan-district-council/wolverhampton","WIX.COM","186.26","Technical Support","5968","Subscriptions","11/09/2017"
"Wolverhampton City Council","http://opendatacommunities.org/id/metropolitan-district-council/wolverhampton","WIX.COM","93.13","Technical Support","5817","Computing - Purchase of Software","11/09/2017"
"Wolverhampton City Council","http://opendatacommunities.org/id/metropolitan-district-council/wolverhampton","Amazon UK Marketplace","27.62","Global Budgets","5999","Books","11/09/2017"
"Wolverhampton City Council","http://opendatacommunities.org/id/metropolitan-district-council/wolverhampton","ASDA HOME SHOPPING","93.12","Ernest Bold Court","5411","Provisions (Not for resale)","11/09/2017"
"Wolverhampton City Council","http://opendatacommunities.org/id/metropolitan-district-council/wolverhampton","AMAZON.CO.UK","8.62","Head of Service - CINCP","5942","Computing - Purchase of Hardware","11/09/2017"
"Wolverhampton City Council","http://opendatacommunities.org/id/metropolitan-district-council/wolverhampton","SAINSBURYS (2340)","5.72","Play General","5411","Provisions (Not for resale)","11/09/2017"
"Wolverhampton City Council","http://opendatacommunities.org/id/metropolitan-district-council/wolverhampton","BRITANNIA","225.00","CIN/CP Social Work Unit - Area 5","7011","Section 17","11/09/2017"
"Wolverhampton City Council","http://opendatacommunities.org/id/metropolitan-district-council/wolverhampton","HIGHFIELD HOUSE HO","385.00","CIN/CP Social Work Unit - Area 3","7011","Accommodation Costs","11/09/2017"
"Wolverhampton City Council","http://opendatacommunities.org/id/metropolitan-district-council/wolverhampton","ITUNES.COM/BILL","166.66","Headstart - Learning Technologies Team","5735","Computing - Purchase of Software","11/09/2017"
"Wolverhampton City Council","http://opendatacommunities.org/id/metropolitan-district-council/wolverhampton","PREMIER INN","198.32","Headstart Phase 3","3811","Accommodation Costs","11/09/2017"
"Wolverhampton City Council","http://opendatacommunities.org/id/metropolitan-district-council/wolverhampton","ROYAL BK OF SCOTLAND","200.00","Headstart Phase 3","6011","Financial Assistance In Exceptional Circ","11/09/2017"
"Wolverhampton City Council","http://opendatacommunities.org/id/metropolitan-district-council/wolverhampton","WM MORRISONS","21.00","EIP Locality 5","5411","Services - Supplies & Services to users","11/09/2017"
"Wolverhampton City Council","http://opendatacommunities.org/id/metropolitan-district-council/wolverhampton","Trainline","100.98","Audit Services","4112","Public Transport","11/09/2017"
"Wolverhampton City Council","http://opendatacommunities.org/id/metropolitan-district-council/wolverhampton","DENNISWILLECOM","60.68","IMPACT","5999","Equipment - Purchase","11/09/2017"
"Wolverhampton City Council","http://opendatacommunities.org/id/metropolitan-district-council/wolverhampton","MOONSTONE DAY CARE LTD","60.00","IMPACT","8351","Services - Supplies & Services to users","11/09/2017"
"Wolverhampton City Council","http://opendatacommunities.org/id/metropolitan-district-council/wolverhampton","WWW.LABEEBY.CO.UK","72.45","IMPACT","5691","Equipment - Purchase","11/09/2017"
"Wolverhampton City Council","http://opendatacommunities.org/id/metropolitan-district-council/wolverhampton","HOBBY CRAFT LTD","8.08","Aldersley Leisure Village","5970","Materials","11/09/2017"
"Wolverhampton City Council","http://opendatacommunities.org/id/metropolitan-district-council/wolverhampton","GOOGLE  ADWS9680351324","350.00","Communications & Marketing - General","5968","Subscriptions","11/09/2017"
"Wolverhampton City Council","http://opendatacommunities.org/id/metropolitan-district-council/wolverhampton","VWO.com","46.36","City Direct","7399","Equipment - Purchase","11/09/2017"
"Wolverhampton City Council","http://opendatacommunities.org/id/metropolitan-district-council/wolverhampton","TVLICENSING.CO.UK","147.00","LAC Transitions Team","7392","Client Allowances","11/09/2017"
"Wolverhampton City Council","http://opendatacommunities.org/id/metropolitan-district-council/wolverhampton","NOVOTEL HOTELS","497.50","Strategic ICTS (ICT Serv Budget)","3642","Accommodation Costs","11/09/2017"
"Wolverhampton City Council","http://opendatacommunities.org/id/metropolitan-district-council/wolverhampton","RESORT WORLD BIRMINGHA","250.00","Managing Director","5813","Accommodation Costs","11/09/2017"
"Wolverhampton City Council","http://opendatacommunities.org/id/metropolitan-district-council/wolverhampton","WWW.MDNSUPPLIES.CO.UK","90.09","Delivery & OCE Development","5085","Equipment - Purchase","11/09/2017"
"Wolverhampton City Council","http://opendatacommunities.org/id/metropolitan-district-council/wolverhampton","WWWBHANGRABLAZECOM","20.00","WV Active Business Support","7997","Training Expenses","11/09/2017"
"Wolverhampton City Council","http://opendatacommunities.org/id/metropolitan-district-council/wolverhampton","INSPIRE HIRE","109.22","Quality Assurance & Policies","5021","Furniture","11/09/2017"
"Wolverhampton City Council","http://opendatacommunities.org/id/metropolitan-district-council/wolverhampton","BARCLAYS BANK PLC","250.00","","6011","Financial Assistance In Exceptional Circ","08/09/2017"
"Wolverhampton City Council","http://opendatacommunities.org/id/metropolitan-district-council/wolverhampton","SAINSBURYS (2340)","7.55","Quality Assurance & Policies","5411","Provisions (Not for resale)","08/09/2017"
"Wolverhampton City Council","http://opendatacommunities.org/id/metropolitan-district-council/wolverhampton","Amazon EU","17.70","Aldersley Leisure Village","5969","Equipment - Purchase","08/09/2017"
"Wolverhampton City Council","http://opendatacommunities.org/id/metropolitan-district-council/wolverhampton","WWW.KSV.CO.UK","14.45","Mayoral Expenses","7399","Equipment - Purchase","08/09/2017"
"Wolverhampton City Council","http://opendatacommunities.org/id/metropolitan-district-council/wolverhampton","POST OFFICE COUNTER","242.00","EIP Locality 8","9402","Comms - Postage","08/09/2017"
"Wolverhampton City Council","http://opendatacommunities.org/id/metropolitan-district-council/wolverhampton","ASDA SUPERSTORE","11.46","Cemeteries","5411","Provisions (Not for resale)","08/09/2017"
"Wolverhampton City Council","http://opendatacommunities.org/id/metropolitan-district-council/wolverhampton","HOME BARGAINS WOLVERHA","22.79","Cemeteries","5251","Equipment - Purchase","08/09/2017"
"Wolverhampton City Council","http://opendatacommunities.org/id/metropolitan-district-council/wolverhampton","UNTOUCHABLES","2.50","Cemeteries","5231","Materials","08/09/2017"
"Wolverhampton City Council","http://opendatacommunities.org/id/metropolitan-district-council/wolverhampton","Virgin Trains","182.00","Adoption and Residence Team & Allowances","4112","Public Transport","08/09/2017"
"Wolverhampton City Council","http://opendatacommunities.org/id/metropolitan-district-council/wolverhampton","Virgin Trains","201.60","Adoption and Residence Team & Allowances","4112","Public Transport","08/09/2017"
"Wolverhampton City Council","http://opendatacommunities.org/id/metropolitan-district-council/wolverhampton","POST OFFICE COUNTER","7.25","Adoption and Residence Team & Allowances","9402","Comms - Postage","08/09/2017"
"Wolverhampton City Council","http://opendatacommunities.org/id/metropolitan-district-council/wolverhampton","WEST COAST TRAINS","60.60","Strategic ICTS (ICT Serv Budget)","4112","Public Transport","08/09/2017"
"Wolverhampton City Council","http://opendatacommunities.org/id/metropolitan-district-council/wolverhampton","WAYFAIR STORES LIM","291.63","CIN/CP Social Work Unit - Area 5","5965","Section 17","08/09/2017"
"Wolverhampton City Council","http://opendatacommunities.org/id/metropolitan-district-council/wolverhampton","AMAZON UK PRIME AMZN.C","-7.99","Global Budgets","5968","Subscriptions","08/09/2017"
"Wolverhampton City Council","http://opendatacommunities.org/id/metropolitan-district-council/wolverhampton","FACEBK ZRHH9CN982","52.41","Audience Development","7311","Marketing \ Non-staff advertising","08/09/2017"
"Wolverhampton City Council","http://opendatacommunities.org/id/metropolitan-district-council/wolverhampton","FACEBK XRHH9CN982","147.66","Audience Development","7311","Marketing \ Non-staff advertising","08/09/2017"
"Wolverhampton City Council","http://opendatacommunities.org/id/metropolitan-district-council/wolverhampton","AMAZON.CO.UK","11.79","School Improvement","5942","Books","08/09/2017"
"Wolverhampton City Council","http://opendatacommunities.org/id/metropolitan-district-council/wolverhampton","WWW.ARGOS.CO.UK","168.94","CIN/CP Social Work Unit - Area 4","5310","Section 17","08/09/2017"
"Wolverhampton City Council","http://opendatacommunities.org/id/metropolitan-district-council/wolverhampton","TFM FARM & COUNTRY SUP","26.64","Northicote Farm","5399","Equipment - Purchase","08/09/2017"
"Wolverhampton City Council","http://opendatacommunities.org/id/metropolitan-district-council/wolverhampton","TFM FARM & COUNTRY SUP","73.70","Northicote Farm","5399","Equipment - Purchase","08/09/2017"
"Wolverhampton City Council","http://opendatacommunities.org/id/metropolitan-district-council/wolverhampton","TFM FARM & COUNTRY SUP","88.24","Northicote Farm","5399","Equipment - Purchase","08/09/2017"
"Wolverhampton City Council","http://opendatacommunities.org/id/metropolitan-district-council/wolverhampton","IKEA LIMITED","130.00","EIP Locality 5","5712","Equipment - Purchase","08/09/2017"
"Wolverhampton City Council","http://opendatacommunities.org/id/metropolitan-district-council/wolverhampton","IKEA LIMITED","207.37","EIP Locality 5","5712","Equipment - Purchase","08/09/2017"
"Wolverhampton City Council","http://opendatacommunities.org/id/metropolitan-district-council/wolverhampton","NCE COMPUTER GROUP","130.20","Customer Services","7372","Computing - Purchase of Software","08/09/2017"
"Wolverhampton City Council","http://opendatacommunities.org/id/metropolitan-district-council/wolverhampton","WWW.ARGOS.CO.UK","254.94","CIN/CP Social Work Unit - Area 3","5310","Equipment - Purchase","08/09/2017"
"Wolverhampton City Council","http://opendatacommunities.org/id/metropolitan-district-council/wolverhampton","ARGOS RETAIL GROUP","156.25","LAC Transitions Team","5310","Client Allowances","08/09/2017"
"Wolverhampton City Council","http://opendatacommunities.org/id/metropolitan-district-council/wolverhampton","POUNDSTRETCHER 703","24.98","LAC Transitions Team","5714","Client Allowances","08/09/2017"
"Wolverhampton City Council","http://opendatacommunities.org/id/metropolitan-district-council/wolverhampton","WAYFAIR STORES LIM","154.97","Director of Education","5965","Equipment - Purchase","08/09/2017"
"Wolverhampton City Council","http://opendatacommunities.org/id/metropolitan-district-council/wolverhampton","Virgin Trains","487.50","Housing Regeneration - Strategy & Dev","4112","Public Transport","08/09/2017"
"Wolverhampton City Council","http://opendatacommunities.org/id/metropolitan-district-council/wolverhampton","TESCO STORES 5397","2.99","EIP Locality 1","5411","Grant Payments","08/09/2017"
"Wolverhampton City Council","http://opendatacommunities.org/id/metropolitan-district-council/wolverhampton","BAL NEWS LIMITED-58993","40.50","EIP Locality 1","5411","Grant Payments","08/09/2017"
"Wolverhampton City Council","http://opendatacommunities.org/id/metropolitan-district-council/wolverhampton","Amazon UK Marketplace","4.16","Vulnerable Young Persons Team","5942","Books","08/09/2017"
"Wolverhampton City Council","http://opendatacommunities.org/id/metropolitan-district-council/wolverhampton","Amazon UK Marketplace","125.00","Vulnerable Young Persons Team","5942","Books","08/09/2017"
"Wolverhampton City Council","http://opendatacommunities.org/id/metropolitan-district-council/wolverhampton","Amazon UK Marketplace","3.32","Vulnerable Young Persons Team","5942","Books","08/09/2017"
"Wolverhampton City Council","http://opendatacommunities.org/id/metropolitan-district-council/wolverhampton","WAITROSE 696","18.00","EIP Locality 3","5411","Grant Payments","08/09/2017"
"Wolverhampton City Council","http://opendatacommunities.org/id/metropolitan-district-council/wolverhampton","ASDA GEORGE COM LEEDS","52.08","CIN/CP Social Work Unit - Area 5","5411","Section 17","08/09/2017"
"Wolverhampton City Council","http://opendatacommunities.org/id/metropolitan-district-council/wolverhampton","CYNGOR GWYNEDD","407.20","Towers Outdoor Education Centre","9399","Equipment - Purchase","07/09/2017"
"Wolverhampton City Council","http://opendatacommunities.org/id/metropolitan-district-council/wolverhampton","MIDNIGHT BALTI","82.92","LAC Education Team (LACE)","5812","Educ Trips, Holidays, Outings, Activity","07/09/2017"
"Wolverhampton City Council","http://opendatacommunities.org/id/metropolitan-district-council/wolverhampton","WWW.WMCA.CO.UK","220.00","CIN/CP Social Work Unit - Area 3","9399","Client Transport","07/09/2017"
"Wolverhampton City Council","http://opendatacommunities.org/id/metropolitan-district-council/wolverhampton","POST OFFICE COUNTER","7.25","Adoption and Residence Team & Allowances","9402","Comms - Postage","07/09/2017"
"Wolverhampton City Council","http://opendatacommunities.org/id/metropolitan-district-council/wolverhampton","HALFORDS 0775","145.83","Central Baths","5940","Equipment - Purchase","07/09/2017"
"Wolverhampton City Council","http://opendatacommunities.org/id/metropolitan-district-council/wolverhampton","WICKES","25.22","Central Baths","5211","Materials","07/09/2017"
"Wolverhampton City Council","http://opendatacommunities.org/id/metropolitan-district-council/wolverhampton","ARGOS RETAIL GROUP","-105.96","Central Costs","5310","Equipment - Purchase","07/09/2017"
"Wolverhampton City Council","http://opendatacommunities.org/id/metropolitan-district-council/wolverhampton","PAYPAL  IMPORTERSEX","10.94","Central Costs","5712","Equipment - Purchase","07/09/2017"
"Wolverhampton City Council","http://opendatacommunities.org/id/metropolitan-district-council/wolverhampton","Cross Country Trains","81.80","MASH","4112","Public Transport","07/09/2017"
"Wolverhampton City Council","http://opendatacommunities.org/id/metropolitan-district-council/wolverhampton","TESCO-Seller_IST_1_240","13.93","EIP Locality 1","5999","Grant Payments","07/09/2017"
"Wolverhampton City Council","http://opendatacommunities.org/id/metropolitan-district-council/wolverhampton","TESCO DIRECT","261.00","EIP Locality 1","5999","Grant Payments","07/09/2017"
"Wolverhampton City Council","http://opendatacommunities.org/id/metropolitan-district-council/wolverhampton","WWW.HFE-SIGNS.CO.UK","81.90","Technical Support","2741","Publications","07/09/2017"
"Wolverhampton City Council","http://opendatacommunities.org/id/metropolitan-district-council/wolverhampton","BLOXWICH  SST","9.50","Economic Development","4112","Public Transport","07/09/2017"
"Wolverhampton City Council","http://opendatacommunities.org/id/metropolitan-district-council/wolverhampton","AMZ SK (SHI KE)","-5.81","Headstart Phase 3","5999","Equipment - Purchase","07/09/2017"
"Wolverhampton City Council","http://opendatacommunities.org/id/metropolitan-district-council/wolverhampton","HALX WOLVERHAMPTON CIT","100.00","Childrens with Disabilities Team","6011","Comms - Postage","07/09/2017"
"Wolverhampton City Council","http://opendatacommunities.org/id/metropolitan-district-council/wolverhampton","HALX WOLVERHAMPTON CIT","250.00","Childrens with Disabilities Team","6011","No Recourse to Public Funds","07/09/2017"
"Wolverhampton City Council","http://opendatacommunities.org/id/metropolitan-district-council/wolverhampton","LOVE2SHOP.CO.UK","50.00","LAC Transitions Team","8641","Client Allowances","07/09/2017"
"Wolverhampton City Council","http://opendatacommunities.org/id/metropolitan-district-council/wolverhampton","WWW.COLLEGEKITSDIRECT.","66.04","LAC Transitions Team","5999","Client Allowances","07/09/2017"
"Wolverhampton City Council","http://opendatacommunities.org/id/metropolitan-district-council/wolverhampton","WWW.REDSPOTTEDHANK","44.20","Families In Focus","4112","Public Transport","07/09/2017"
"Wolverhampton City Council","http://opendatacommunities.org/id/metropolitan-district-council/wolverhampton","WAITROSE 696","22.12","EIP Locality 3","5411","Grant Payments","07/09/2017"
"Wolverhampton City Council","http://opendatacommunities.org/id/metropolitan-district-council/wolverhampton","Amazon UK Marketplace","7.99","Strategic Director Place","5942","Equipment - Purchase","07/09/2017"
"Wolverhampton City Council","http://opendatacommunities.org/id/metropolitan-district-council/wolverhampton","AMAZON UK RETAIL AMAZO","96.00","Specialist Support Service - North","5999","Stationery","07/09/2017"
"Wolverhampton City Council","http://opendatacommunities.org/id/metropolitan-district-council/wolverhampton","Trainline","176.66","Safeguarding Admin Resource","4112","Public Transport","07/09/2017"
"Wolverhampton City Council","http://opendatacommunities.org/id/metropolitan-district-council/wolverhampton","THE GATEHOUSE HOTEL","59.22","Safeguarding Admin Resource","7011","Services - Supplies & Services to users","07/09/2017"
"Wolverhampton City Council","http://opendatacommunities.org/id/metropolitan-district-council/wolverhampton","BOC TEL ORDER","152.60","The Little Civic","5169","Gas","07/09/2017"
"Wolverhampton City Council","http://opendatacommunities.org/id/metropolitan-district-council/wolverhampton","UNTOUCHABLES","17.50","Education Catering - General Overheads","5231","Materials","07/09/2017"
"Wolverhampton City Council","http://opendatacommunities.org/id/metropolitan-district-council/wolverhampton","Trainline","95.93","CIN/CP Social Work Unit - Area 7","4112","Public Transport","07/09/2017"
"Wolverhampton City Council","http://opendatacommunities.org/id/metropolitan-district-council/wolverhampton","LOYD 89 CHURCH STREET","20.00","Ernest Bold Court","6011","Services - Supplies & Services to users","07/09/2017"
"Wolverhampton City Council","http://opendatacommunities.org/id/metropolitan-district-council/wolverhampton","Amazon UK Marketplace","8.35","School Improvement","5942","Books","07/09/2017"
"Wolverhampton City Council","http://opendatacommunities.org/id/metropolitan-district-council/wolverhampton","C L JONES LIMITED","467.86","Towers Outdoor Education Centre","5211","Fixtures and Fittings - Purchases","07/09/2017"
"Wolverhampton City Council","http://opendatacommunities.org/id/metropolitan-district-council/wolverhampton","BANGOR FINANCE","95.00","Towers Outdoor Education Centre","8299","Training Expenses","07/09/2017"
"Wolverhampton City Council","http://opendatacommunities.org/id/metropolitan-district-council/wolverhampton","SNOWDONIA WATERSPO","24.00","Towers Outdoor Education Centre","7997","Equipment - Purchase","07/09/2017"
"Wolverhampton City Council","http://opendatacommunities.org/id/metropolitan-district-council/wolverhampton","RICHARD WILLIAMS","81.19","Towers Outdoor Education Centre","5211","Equipment - Purchase","07/09/2017"
"Wolverhampton City Council","http://opendatacommunities.org/id/metropolitan-district-council/wolverhampton","COTSWOLD OUTDOOR-MAIL","11.17","Towers Outdoor Education Centre","5691","Equipment - Purchase","07/09/2017"
"Wolverhampton City Council","http://opendatacommunities.org/id/metropolitan-district-council/wolverhampton","WWW.ARGOS.CO.UK","255.78","LAC Transitions Team","5310","Client Allowances","06/09/2017"
"Wolverhampton City Council","http://opendatacommunities.org/id/metropolitan-district-council/wolverhampton","SAINSBURYS","240.00","EIP Locality 7","6011","Grant Payments","06/09/2017"
"Wolverhampton City Council","http://opendatacommunities.org/id/metropolitan-district-council/wolverhampton","Amazon EU","20.16","EIP Locality 7","5969","Equipment - Purchase","06/09/2017"
"Wolverhampton City Council","http://opendatacommunities.org/id/metropolitan-district-council/wolverhampton","HIGHFIELD HOUSE HO","385.00","CIN/CP Social Work Unit - Area 3","7011","Accommodation Costs","06/09/2017"
"Wolverhampton City Council","http://opendatacommunities.org/id/metropolitan-district-council/wolverhampton","B & Q 1243","11.95","Bradley Resource Centre","5211","Equipment - R & M","06/09/2017"
"Wolverhampton City Council","http://opendatacommunities.org/id/metropolitan-district-council/wolverhampton","AMAZON UK RETAIL AMAZO","36.56","Members Expenses","5999","Equipment - Purchase","06/09/2017"
"Wolverhampton City Council","http://opendatacommunities.org/id/metropolitan-district-council/wolverhampton","PEEKS THE EVENT MAKERS","261.27","Christmas Festivities","5947","Materials","06/09/2017"
"Wolverhampton City Council","http://opendatacommunities.org/id/metropolitan-district-council/wolverhampton","ASDA SUPERSTORE","-1.00","CIN/CP Social Work Unit - Area 4","5411","Provisions (Not for resale)","06/09/2017"
"Wolverhampton City Council","http://opendatacommunities.org/id/metropolitan-district-council/wolverhampton","ALDI 78 772        S","0.99","CIN/CP Social Work Unit - Area 4","5411","Provisions (Not for resale)","06/09/2017"
"Wolverhampton City Council","http://opendatacommunities.org/id/metropolitan-district-council/wolverhampton","SAINSBURYS (2340)","14.50","CIN/CP Social Work Unit - Area 4","5411","Provisions (Not for resale)","06/09/2017"
"Wolverhampton City Council","http://opendatacommunities.org/id/metropolitan-district-council/wolverhampton","ASHLEY ELEC WLSRS LTD","11.67","Education Catering - General Overheads","7629","Equipment - R & M","06/09/2017"
"Wolverhampton City Council","http://opendatacommunities.org/id/metropolitan-district-council/wolverhampton","NOTEMACHINE","200.00","Mental Health Assessment & Care Mgmt","6011","Financial Assistance In Exceptional Circ","06/09/2017"
"Wolverhampton City Council","http://opendatacommunities.org/id/metropolitan-district-council/wolverhampton","HSBC INVOICE FINAN","557.17","Towers Outdoor Education Centre","6012","Laundry Expenses","06/09/2017"
"Wolverhampton City Council","http://opendatacommunities.org/id/metropolitan-district-council/wolverhampton","BARCLAYS BANK PLC","250.00","CIN/CP Social Work Unit - Area 6","6011","No Recourse to Public Funds","06/09/2017"
"Wolverhampton City Council","http://opendatacommunities.org/id/metropolitan-district-council/wolverhampton","VERIFONE TAXI/PRIVATE","8.25","CIN/CP Social Work Unit - Area 6","4121","Section 17","06/09/2017"
"Wolverhampton City Council","http://opendatacommunities.org/id/metropolitan-district-council/wolverhampton","WWW.MEMBERS.LANDSCAPEI","70.00","Corporate Procurement Unit","0780","Books","06/09/2017"
"Wolverhampton City Council","http://opendatacommunities.org/id/metropolitan-district-council/wolverhampton","ASDA SUPERSTORE","22.05","EIP Locality 5","5411","Grant Payments","06/09/2017"
"Wolverhampton City Council","http://opendatacommunities.org/id/metropolitan-district-council/wolverhampton","LOYD 37 CHURCH STREET","300.00","EIP Locality 8","6011","Grant Payments","06/09/2017"
"Wolverhampton City Council","http://opendatacommunities.org/id/metropolitan-district-council/wolverhampton","THE PROPERTY PLACE","160.00","LAC Transitions Team","8999","Client Allowances","06/09/2017"
"Wolverhampton City Council","http://opendatacommunities.org/id/metropolitan-district-council/wolverhampton","THE PROPERTY PLACE","250.00","LAC Transitions Team","8999","Client Allowances","06/09/2017"
"Wolverhampton City Council","http://opendatacommunities.org/id/metropolitan-district-council/wolverhampton","Amazon EU","124.53","Strategic ICTS (ICT Serv Budget)","5969","Equipment - Purchase","06/09/2017"
"Wolverhampton City Council","http://opendatacommunities.org/id/metropolitan-district-council/wolverhampton","MARKS&SPENCER PLC SACA","54.05","CIN/CP Social Work Unit - Area 3","5411","No Recourse to Public Funds","06/09/2017"
"Wolverhampton City Council","http://opendatacommunities.org/id/metropolitan-district-council/wolverhampton","ASDA SUPERSTORE","100.00","CIN/CP Social Work Unit - Area 3","5411","Provisions (Not for resale)","06/09/2017"
"Wolverhampton City Council","http://opendatacommunities.org/id/metropolitan-district-council/wolverhampton","ASDA SUPERSTORE","200.00","CIN/CP Social Work Unit - Area 3","5411","Provisions (Not for resale)","06/09/2017"
"Wolverhampton City Council","http://opendatacommunities.org/id/metropolitan-district-council/wolverhampton","LADS & LASSES SCHOOL W","28.99","CIN/CP Social Work Unit - Area 3","5641","No Recourse to Public Funds","06/09/2017"
"Wolverhampton City Council","http://opendatacommunities.org/id/metropolitan-district-council/wolverhampton","TRUTEX WOLVERHAMPTON","20.03","CIN/CP Social Work Unit - Area 3","5137","No Recourse to Public Funds","06/09/2017"
"Wolverhampton City Council","http://opendatacommunities.org/id/metropolitan-district-council/wolverhampton","ASDA GEORGE COM LEEDS","3.00","EIP Locality 5","5411","Grant Payments","06/09/2017"
"Wolverhampton City Council","http://opendatacommunities.org/id/metropolitan-district-council/wolverhampton","B & Q 1243","21.05","Caretakers Community Centre","5211","R&M - Departmental planned (external)","06/09/2017"
"Wolverhampton City Council","http://opendatacommunities.org/id/metropolitan-district-council/wolverhampton","REGISTRARS OFFICE","20.00","CIN/CP Social Work Unit - Area 1","8299","Grant Payments","06/09/2017"
"Wolverhampton City Council","http://opendatacommunities.org/id/metropolitan-district-council/wolverhampton","THE QUALITY HOTEL WOLV","106.00","CIN/CP Social Work Unit - Area 1","7011","Services - Supplies & Services to users","06/09/2017"
"Wolverhampton City Council","http://opendatacommunities.org/id/metropolitan-district-council/wolverhampton","Virgin Trains","16.80","Housing Regeneration - Strategy & Dev","4112","Public Transport","06/09/2017"
"Wolverhampton City Council","http://opendatacommunities.org/id/metropolitan-district-council/wolverhampton","Amazon Prime","7.99","Private Sector Housing","5968","Subscriptions","06/09/2017"
"Wolverhampton City Council","http://opendatacommunities.org/id/metropolitan-district-council/wolverhampton","Amazon UK Marketplace","4.95","EIP Locality 2","5942","Equipment - Purchase","06/09/2017"
"Wolverhampton City Council","http://opendatacommunities.org/id/metropolitan-district-council/wolverhampton","AMAZON.CO.UK","130.95","SEN Sensory Inclusion","5942","Equipment - Purchase","06/09/2017"
"Wolverhampton City Council","http://opendatacommunities.org/id/metropolitan-district-council/wolverhampton","Amazon UK Marketplace","13.25","SEN Sensory Inclusion","5942","Equipment - Purchase","06/09/2017"
"Wolverhampton City Council","http://opendatacommunities.org/id/metropolitan-district-council/wolverhampton","IKEA LIMITED","22.50","Craftplay","5712","Equipment - Purchase","06/09/2017"
"Wolverhampton City Council","http://opendatacommunities.org/id/metropolitan-district-council/wolverhampton","VIBRANT COLOUR LIMITED","33.32","Technical Support","5734","Materials","06/09/2017"
"Wolverhampton City Council","http://opendatacommunities.org/id/metropolitan-district-council/wolverhampton","ARGOS LTD","83.30","Headstart Phase 3","5310","Equipment - Purchase","06/09/2017"
"Wolverhampton City Council","http://opendatacommunities.org/id/metropolitan-district-council/wolverhampton","Trainline","135.15","Headstart Phase 3","4112","Public Transport","06/09/2017"
"Wolverhampton City Council","http://opendatacommunities.org/id/metropolitan-district-council/wolverhampton","Trainline","148.41","Headstart Phase 3","4112","Public Transport","06/09/2017"
"Wolverhampton City Council","http://opendatacommunities.org/id/metropolitan-district-council/wolverhampton","DENNISWILLECOM","60.68","IMPACT","5999","Equipment - Purchase","06/09/2017"
"Wolverhampton City Council","http://opendatacommunities.org/id/metropolitan-district-council/wolverhampton","WWW.LABEEBY.CO.UK","55.95","IMPACT","5691","Equipment - Purchase","06/09/2017"
"Wolverhampton City Council","http://opendatacommunities.org/id/metropolitan-district-council/wolverhampton","ASDA SUPERSTORE","17.23","Mayoral Expenses","5411","Hospitality","06/09/2017"
"Wolverhampton City Council","http://opendatacommunities.org/id/metropolitan-district-council/wolverhampton","ASDA HOME SHOPPING","160.64","Upper Pendeford Farm Childrens Home","5411","Provisions (Not for resale)","06/09/2017"
"Wolverhampton City Council","http://opendatacommunities.org/id/metropolitan-district-council/wolverhampton","INSPIRE HIRE","117.20","Quality Assurance & Policies","5021","Furniture","06/09/2017"
"Wolverhampton City Council","http://opendatacommunities.org/id/metropolitan-district-council/wolverhampton","Virgin Trains","66.55","SWP - Infrastructure","4112","Public Transport","06/09/2017"
"Wolverhampton City Council","http://opendatacommunities.org/id/metropolitan-district-council/wolverhampton","SEVERN TRENT WATER","142.28","CIN/CP Social Work Unit - Area 4","4900","Electricity","05/09/2017"
"Wolverhampton City Council","http://opendatacommunities.org/id/metropolitan-district-council/wolverhampton","LADS & LASSES SCHOOL W","68.98","CIN/CP Social Work Unit - Area 4","5641","Equipment - Purchase","05/09/2017"
"Wolverhampton City Council","http://opendatacommunities.org/id/metropolitan-district-council/wolverhampton","Trainline","9.03","Legal Services","4112","Public Transport","05/09/2017"
"Wolverhampton City Council","http://opendatacommunities.org/id/metropolitan-district-council/wolverhampton","PRESTWOOD PETZONE","4.46","Children & Family Contact Services","5995","Equipment - Purchase","05/09/2017"
"Wolverhampton City Council","http://opendatacommunities.org/id/metropolitan-district-council/wolverhampton","Trainline","132.14","CIN/CP Social Work Unit - Area 8","4112","Public Transport","05/09/2017"
"Wolverhampton City Council","http://opendatacommunities.org/id/metropolitan-district-council/wolverhampton","WEST COAST TRAINS","7.60","Economic Development","4112","Public Transport","05/09/2017"
"Wolverhampton City Council","http://opendatacommunities.org/id/metropolitan-district-council/wolverhampton","Amazon UK Marketplace","29.52","Headstart - Learning Technologies Team","5942","Books","05/09/2017"
"Wolverhampton City Council","http://opendatacommunities.org/id/metropolitan-district-council/wolverhampton","FACEBK 9FB62EJAR2","17.88","Communications & Marketing - General","7311","Marketing \ Non-staff advertising","05/09/2017"
"Wolverhampton City Council","http://opendatacommunities.org/id/metropolitan-district-council/wolverhampton","FACEBK 8FB62EJAR2","482.20","Communications & Marketing - General","7311","Marketing \ Non-staff advertising","05/09/2017"
"Wolverhampton City Council","http://opendatacommunities.org/id/metropolitan-district-council/wolverhampton","WWW.GEAR4MUSIC.COM","239.16","Aldersley Leisure Village","5733","Equipment - Purchase","05/09/2017"
"Wolverhampton City Council","http://opendatacommunities.org/id/metropolitan-district-council/wolverhampton","JOHNSON CLEANERS","9.00","Mayoral Expenses","7216","Clothing / Uniforms","05/09/2017"
"Wolverhampton City Council","http://opendatacommunities.org/id/metropolitan-district-council/wolverhampton","WAITROSE 696","1.48","Mayoral Expenses","5411","Hospitality","05/09/2017"
"Wolverhampton City Council","http://opendatacommunities.org/id/metropolitan-district-council/wolverhampton","POUNDSTRETCHER 147","16.17","Admin & Support","5714","Catering","05/09/2017"
"Wolverhampton City Council","http://opendatacommunities.org/id/metropolitan-district-council/wolverhampton","Trainline","62.12","LAC Transitions Team","4112","Client Allowances","05/09/2017"
"Wolverhampton City Council","http://opendatacommunities.org/id/metropolitan-district-council/wolverhampton","Trainline","81.09","Youth Offending Team","4112","Public Transport","05/09/2017"
"Wolverhampton City Council","http://opendatacommunities.org/id/metropolitan-district-council/wolverhampton","WEST MID TRAVEL","231.70","Youth Offending Team","4131","Public Transport","05/09/2017"
"Wolverhampton City Council","http://opendatacommunities.org/id/metropolitan-district-council/wolverhampton","ARGOS RETAIL GROUP","31.99","Strategic ICTS (ICT Serv Budget)","5310","Equipment - Purchase","05/09/2017"
"Wolverhampton City Council","http://opendatacommunities.org/id/metropolitan-district-council/wolverhampton","AWARDS CENTRE V/T","278.70","Central Baths","5999","Equipment - Purchase","05/09/2017"
"Wolverhampton City Council","http://opendatacommunities.org/id/metropolitan-district-council/wolverhampton","AMFBOWLING.CO.UK","17.64","CIN/CP Social Work Unit - Area 3","7933","Educ Trips, Holidays, Outings, Activity","05/09/2017"
"Wolverhampton City Council","http://opendatacommunities.org/id/metropolitan-district-council/wolverhampton","INSPIRE HIRE","200.00","Quality Assurance & Policies","5021","Furniture","05/09/2017"
"Wolverhampton City Council","http://opendatacommunities.org/id/metropolitan-district-council/wolverhampton","IKEA ONLINE","3955.00","EIP Locality 5","5719","Furniture","05/09/2017"
"Wolverhampton City Council","http://opendatacommunities.org/id/metropolitan-district-council/wolverhampton","PAYPAL  WORDERY","153.60","EIP Locality 5","5942","Grant Payments","05/09/2017"
"Wolverhampton City Council","http://opendatacommunities.org/id/metropolitan-district-council/wolverhampton","WATERSTONES","27.00","IMPACT","5942","Books","05/09/2017"
"Wolverhampton City Council","http://opendatacommunities.org/id/metropolitan-district-council/wolverhampton","DENNISWILLECOM","146.00","IMPACT","5999","Equipment - Purchase","05/09/2017"
"Wolverhampton City Council","http://opendatacommunities.org/id/metropolitan-district-council/wolverhampton","WWW.UNIFORMCOLLECTION.","90.00","IMPACT","5137","Clothing / Uniforms","05/09/2017"
"Wolverhampton City Council","http://opendatacommunities.org/id/metropolitan-district-council/wolverhampton","Amazon UK Marketplace","124.96","EIP Locality 2","5942","Equipment - Purchase","05/09/2017"
"Wolverhampton City Council","http://opendatacommunities.org/id/metropolitan-district-council/wolverhampton","Amazon UK Marketplace","16.53","SEN Sensory Inclusion","5942","Equipment - Purchase","05/09/2017"
"Wolverhampton City Council","http://opendatacommunities.org/id/metropolitan-district-council/wolverhampton","Amazon UK Marketplace","19.75","SEN Sensory Inclusion","5942","Equipment - Purchase","05/09/2017"
"Wolverhampton City Council","http://opendatacommunities.org/id/metropolitan-district-council/wolverhampton","Amazon UK Marketplace","83.93","Technical Support","5942","Computing - Purchase of Hardware","05/09/2017"
"Wolverhampton City Council","http://opendatacommunities.org/id/metropolitan-district-council/wolverhampton","ARGOS RETAIL GROUP","-7.47","EIP Locality 3","5310","Grant Payments","05/09/2017"
"Wolverhampton City Council","http://opendatacommunities.org/id/metropolitan-district-council/wolverhampton","E09009100000000","100.00","EIP Locality 3","6011","Grant Payments","05/09/2017"
"Wolverhampton City Council","http://opendatacommunities.org/id/metropolitan-district-council/wolverhampton","ARGOS RETAIL GROUP","44.96","EIP Locality 3","5310","Grant Payments","05/09/2017"
"Wolverhampton City Council","http://opendatacommunities.org/id/metropolitan-district-council/wolverhampton","ASDA HOME SHOPPING","96.65","Ernest Bold Court","5411","Provisions (Not for resale)","05/09/2017"
"Wolverhampton City Council","http://opendatacommunities.org/id/metropolitan-district-council/wolverhampton","Trainline","60.59","CIN/CP Social Work Unit - Area 6","4112","Section 17","05/09/2017"
"Wolverhampton City Council","http://opendatacommunities.org/id/metropolitan-district-council/wolverhampton","ASDA SUPERSTORE","91.66","CIN/CP Social Work Unit - Area 4","5411","Provisions (Not for resale)","05/09/2017"
"Wolverhampton City Council","http://opendatacommunities.org/id/metropolitan-district-council/wolverhampton","000002200500000","250.00","CIN/CP Social Work Unit - Area 6","6011","Financial Assistance In Exceptional Circ","05/09/2017"
"Wolverhampton City Council","http://opendatacommunities.org/id/metropolitan-district-council/wolverhampton","ARGOS RETAIL GROUP","49.99","Delivery & OCE Development","5310","Equipment - Purchase","05/09/2017"
"Wolverhampton City Council","http://opendatacommunities.org/id/metropolitan-district-council/wolverhampton","Virgin Trains","364.00","Planning","4112","Public Transport","05/09/2017"
"Wolverhampton City Council","http://opendatacommunities.org/id/metropolitan-district-council/wolverhampton","WWW.OAKFURNITURELA","450.36","Future Space Decant Area","5712","Equipment - Purchase","05/09/2017"
"Wolverhampton City Council","http://opendatacommunities.org/id/metropolitan-district-council/wolverhampton","Amazon EU","104.85","School Improvement","5969","Equipment - Purchase","04/09/2017"
"Wolverhampton City Council","http://opendatacommunities.org/id/metropolitan-district-council/wolverhampton","Amazon EU","32.79","School Improvement","5969","Equipment - Purchase","04/09/2017"
"Wolverhampton City Council","http://opendatacommunities.org/id/metropolitan-district-council/wolverhampton","THEPLASTICSHOP","95.23","Michael Lyons","7399","Materials","04/09/2017"
"Wolverhampton City Council","http://opendatacommunities.org/id/metropolitan-district-council/wolverhampton","Amazon UK Marketplace","24.65","Revenues","5942","Books","04/09/2017"
"Wolverhampton City Council","http://opendatacommunities.org/id/metropolitan-district-council/wolverhampton","ALDI 73 772        S","35.17","LAC Transitions Team","5411","Client Allowances","04/09/2017"
"Wolverhampton City Council","http://opendatacommunities.org/id/metropolitan-district-council/wolverhampton","SAINSBURYS SACAT 2040","2.08","LAC Transitions Team","5411","Client Allowances","04/09/2017"
"Wolverhampton City Council","http://opendatacommunities.org/id/metropolitan-district-council/wolverhampton","Virgin Trains","108.00","Planning","4112","Public Transport","04/09/2017"
"Wolverhampton City Council","http://opendatacommunities.org/id/metropolitan-district-council/wolverhampton","POST OFFICE COUNTER","40.00","CIN/CP Social Work Unit - Area 3","9402","Comms - Postage","04/09/2017"
"Wolverhampton City Council","http://opendatacommunities.org/id/metropolitan-district-council/wolverhampton","Amazon EU","136.66","Licensing - General","5969","Equipment - Purchase","04/09/2017"
"Wolverhampton City Council","http://opendatacommunities.org/id/metropolitan-district-council/wolverhampton","BLOXWICH NORTH SST","7.00","Economic Development","4112","Public Transport","04/09/2017"
"Wolverhampton City Council","http://opendatacommunities.org/id/metropolitan-district-council/wolverhampton","WWWNAACECOUK","100.00","Headstart - Learning Technologies Team","8699","Subscriptions","04/09/2017"
"Wolverhampton City Council","http://opendatacommunities.org/id/metropolitan-district-council/wolverhampton","CARVER/WOLVERHAMPTON/L","36.37","Ground Maintenance East","5211","Materials","04/09/2017"
"Wolverhampton City Council","http://opendatacommunities.org/id/metropolitan-district-council/wolverhampton","Amazon UK Marketplace","15.77","Communications & Marketing - General","5942","Books","04/09/2017"
"Wolverhampton City Council","http://opendatacommunities.org/id/metropolitan-district-council/wolverhampton","POST OFFICE COUNTER","87.00","Parent / Partnership Service","9402","Comms - Postage","04/09/2017"
"Wolverhampton City Council","http://opendatacommunities.org/id/metropolitan-district-council/wolverhampton","WWW.WMCA.CO.UK","109.00","IMPACT","9399","Services - Fees and Charges","04/09/2017"
"Wolverhampton City Council","http://opendatacommunities.org/id/metropolitan-district-council/wolverhampton","WWW.WMCA.CO.UK","109.00","IMPACT","9399","Services - Fees and Charges","04/09/2017"
"Wolverhampton City Council","http://opendatacommunities.org/id/metropolitan-district-council/wolverhampton","Amazon UK Marketplace","6.55","Central Baths","5942","Equipment - Health and Safety","04/09/2017"
"Wolverhampton City Council","http://opendatacommunities.org/id/metropolitan-district-council/wolverhampton","WWW.SAFELINCS.CO.UK","222.90","Central Baths","5099","Equipment - Purchase","04/09/2017"
"Wolverhampton City Council","http://opendatacommunities.org/id/metropolitan-district-council/wolverhampton","OCEANIC SAUNAS LIMITED","19.17","Central Baths","5996","Equipment - Purchase","04/09/2017"
"Wolverhampton City Council","http://opendatacommunities.org/id/metropolitan-district-council/wolverhampton","Trainline","109.14","Transformation","4112","Public Transport","04/09/2017"
"Wolverhampton City Council","http://opendatacommunities.org/id/metropolitan-district-council/wolverhampton","B & Q 1243","7.12","Public Conveniences","5211","R&M - Departmental planned (external)","04/09/2017"
"Wolverhampton City Council","http://opendatacommunities.org/id/metropolitan-district-council/wolverhampton","CUMMINGS BROTHERS LOCK","12.08","Public Conveniences","7399","R&M - Departmental planned (external)","04/09/2017"
"Wolverhampton City Council","http://opendatacommunities.org/id/metropolitan-district-council/wolverhampton","Amazon UK Marketplace","34.36","Strategic ICTS (ICT Serv Budget)","5942","Equipment - Purchase","04/09/2017"
"Wolverhampton City Council","http://opendatacommunities.org/id/metropolitan-district-council/wolverhampton","Amazon UK Marketplace","166.95","Strategic ICTS (ICT Serv Budget)","5942","Equipment - Purchase","04/09/2017"
"Wolverhampton City Council","http://opendatacommunities.org/id/metropolitan-district-council/wolverhampton","ASDA HOME SHOPPING","162.66","Upper Pendeford Farm Childrens Home","5411","Provisions (Not for resale)","04/09/2017"
"Wolverhampton City Council","http://opendatacommunities.org/id/metropolitan-district-council/wolverhampton","BEATTIES","183.05","Mayoral Expenses","5311","Equipment - Purchase","04/09/2017"
"Wolverhampton City Council","http://opendatacommunities.org/id/metropolitan-district-council/wolverhampton","BEATTIES","141.00","Mayoral Expenses","5311","Equipment - Purchase","04/09/2017"
"Wolverhampton City Council","http://opendatacommunities.org/id/metropolitan-district-council/wolverhampton","BEATTIES","86.05","Mayoral Expenses","5311","Equipment - Purchase","04/09/2017"
"Wolverhampton City Council","http://opendatacommunities.org/id/metropolitan-district-council/wolverhampton","BODYCARE H/BEAUTY","6.47","Mayoral Expenses","5977","Toilet Requisites","04/09/2017"
"Wolverhampton City Council","http://opendatacommunities.org/id/metropolitan-district-council/wolverhampton","WWW.VIKING-DIRECT.CO.U","19.63","Archives","5111","Stationery","04/09/2017"
"Wolverhampton City Council","http://opendatacommunities.org/id/metropolitan-district-council/wolverhampton","Amazon UK Marketplace","17.98","SEN Sensory Inclusion","5942","Equipment - Purchase","04/09/2017"
"Wolverhampton City Council","http://opendatacommunities.org/id/metropolitan-district-council/wolverhampton","ASDA HOME SHOPPING","-2.00","Ernest Bold Court","5411","Provisions (Not for resale)","04/09/2017"
"Wolverhampton City Council","http://opendatacommunities.org/id/metropolitan-district-council/wolverhampton","ASDA HOME SHOPPING","97.41","Ernest Bold Court","5411","Provisions (Not for resale)","04/09/2017"
"Wolverhampton City Council","http://opendatacommunities.org/id/metropolitan-district-council/wolverhampton","GOOGLE  SVCSAPPS_wolve","9.90","Civic Halls Non Direct Management A/C","5968","Subscriptions","04/09/2017"
"Wolverhampton City Council","http://opendatacommunities.org/id/metropolitan-district-council/wolverhampton","LIDL UK","4.16","Children & Family Contact Services","5411","Provisions (Not for resale)","04/09/2017"
"Wolverhampton City Council","http://opendatacommunities.org/id/metropolitan-district-council/wolverhampton","Amazon UK Marketplace","129.89","Legal Services","5942","Stationery","04/09/2017"
"Wolverhampton City Council","http://opendatacommunities.org/id/metropolitan-district-council/wolverhampton","AMAZON UK RETAIL AMAZO","9.91","School Improvement","5999","Equipment - Purchase","04/09/2017"
"Wolverhampton City Council","http://opendatacommunities.org/id/metropolitan-district-council/wolverhampton","FACEBK R2PXYD2BR2","124.56","Communications & Marketing - General","7311","Marketing \ Non-staff advertising","01/09/2017"
"Wolverhampton City Council","http://opendatacommunities.org/id/metropolitan-district-council/wolverhampton","FACEBK  8GNMMDWHC2","100.00","Headstart Phase 3","7311","Marketing \ Non-staff advertising","01/09/2017"
"Wolverhampton City Council","http://opendatacommunities.org/id/metropolitan-district-council/wolverhampton","NOTEMACHINE","150.00","Mental Health Assessment & Care Mgmt","6011","Financial Assistance In Exceptional Circ","01/09/2017"
"Wolverhampton City Council","http://opendatacommunities.org/id/metropolitan-district-council/wolverhampton","WWW.WMCA.CO.UK","138.00","IMPACT","4112","Public Transport","01/09/2017"
"Wolverhampton City Council","http://opendatacommunities.org/id/metropolitan-district-council/wolverhampton","WWW.WMCA.CO.UK","500.00","IMPACT","4112","Public Transport","01/09/2017"
"Wolverhampton City Council","http://opendatacommunities.org/id/metropolitan-district-council/wolverhampton","PONY EXPRESS UK LTD","25.00","Mayoral Expenses","4215","Comms - Postage","01/09/2017"
"Wolverhampton City Council","http://opendatacommunities.org/id/metropolitan-district-council/wolverhampton","E01353600000000","150.00","Childrens with Disabilities Team","6011","No Recourse to Public Funds","01/09/2017"
"Wolverhampton City Council","http://opendatacommunities.org/id/metropolitan-district-council/wolverhampton","E01353600000000","200.00","Childrens with Disabilities Team","6011","No Recourse to Public Funds","01/09/2017"
"Wolverhampton City Council","http://opendatacommunities.org/id/metropolitan-district-council/wolverhampton","CUMMINGS BROTHERS LOCK","58.00","Public Conveniences","7399","Equipment - Purchase","01/09/2017"
"Wolverhampton City Council","http://opendatacommunities.org/id/metropolitan-district-council/wolverhampton","FACEBK HNQGQCWC22","338.94","Service Wide","7311","Marketing \ Non-staff advertising","01/09/2017"
"Wolverhampton City Council","http://opendatacommunities.org/id/metropolitan-district-council/wolverhampton","ASDA SUPERSTORE","25.00","EIP Locality 1","5411","Grant Payments","01/09/2017"
"Wolverhampton City Council","http://opendatacommunities.org/id/metropolitan-district-council/wolverhampton","ASDA STORES 4452","3.00","EIP Locality 1","5411","Grant Payments","01/09/2017"
"Wolverhampton City Council","http://opendatacommunities.org/id/metropolitan-district-council/wolverhampton","BLOXWICH NORTH SST","7.00","Economic Development","4112","Public Transport","01/09/2017"
"Wolverhampton City Council","http://opendatacommunities.org/id/metropolitan-district-council/wolverhampton","CARVER/WOLVERHAMPTON/L","31.66","Ground Maintenance East","5211","Materials","01/09/2017"
"Wolverhampton City Council","http://opendatacommunities.org/id/metropolitan-district-council/wolverhampton","FACEBK 9F99AC6A82","390.48","Communications & Marketing - General","7311","Marketing \ Non-staff advertising","01/09/2017"
"Wolverhampton City Council","http://opendatacommunities.org/id/metropolitan-district-council/wolverhampton","FACEBK BF99AC6A82","34.48","Communications & Marketing - General","7311","Marketing \ Non-staff advertising","01/09/2017"
"Wolverhampton City Council","http://opendatacommunities.org/id/metropolitan-district-council/wolverhampton","FACEBK S2PXYD2BR2","3.22","Communications & Marketing - General","7311","Marketing \ Non-staff advertising","01/09/2017"
"Wolverhampton City Council","http://opendatacommunities.org/id/metropolitan-district-council/wolverhampton","RON FLOWERS SPORTS","78.70","EIP Locality 1","5941","Grant Payments","01/09/2017"
"Wolverhampton City Council","http://opendatacommunities.org/id/metropolitan-district-council/wolverhampton","Amazon UK Marketplace","14.99","SEN Sensory Inclusion","5942","Equipment - Purchase","01/09/2017"
"Wolverhampton City Council","http://opendatacommunities.org/id/metropolitan-district-council/wolverhampton","AMAZON.CO.UK","5.08","Global Budgets","5942","Books","01/09/2017"
"Wolverhampton City Council","http://opendatacommunities.org/id/metropolitan-district-council/wolverhampton","FACEBK 5JHQ9F2A82","13.18","Audience Development","7311","Marketing \ Non-staff advertising","01/09/2017"
"Wolverhampton City Council","http://opendatacommunities.org/id/metropolitan-district-council/wolverhampton","FACEBK 3JHQ9F2A82","18.04","Audience Development","7311","Marketing \ Non-staff advertising","01/09/2017"
"Wolverhampton City Council","http://opendatacommunities.org/id/metropolitan-district-council/wolverhampton","CROWN PROPERTY SERVICE","80.00","CIN/CP Social Work Unit - Area 4","7011","Services - Supplies & Services to users","01/09/2017"
"Wolverhampton City Council","http://opendatacommunities.org/id/metropolitan-district-council/wolverhampton","CROWN PROPERTY SERVICE","500.00","CIN/CP Social Work Unit - Area 4","7011","Services - Supplies & Services to users","01/09/2017"
"Wolverhampton City Council","http://opendatacommunities.org/id/metropolitan-district-council/wolverhampton","Amazon UK Marketplace","107.82","School Improvement","5942","Books","01/09/2017"
"Wolverhampton City Council","http://opendatacommunities.org/id/metropolitan-district-council/wolverhampton","GRO HM PASSPORT OFFICE","9.25","LAC Transitions Team","9399","Client Allowances","01/09/2017"
